{"text_format":"1","workbook":"xlsx","n_sheets":8,"sheets":["Raw Data","Read Me","Summary","FY Analysis","STOP Analysis","Program Mix","Checks","Sources & Notes"],"not_rendered":{"charts":1,"images":0,"macros":0,"external_links":0,"defined_names":1,"comments":0,"pivot_tables":0},"unopened":[],"bounds":{"document_bytes":16777216,"sheet_cells":100000,"rows_first":2000,"rows_last":500,"rows_between":2000,"halvings":0,"cell_chars":16384,"cell_head_chars":4096},"cells_cut":0,"cells_raw":0,"read":"whole","date_system":"1900"}

{"sheet":"Raw Data","index":0,"n_rows":259,"n_cols":14,"rows_kept":259,"cut":false,"hidden":false,"merged":[]}
["Award Number","Organization","City","State","Amount","Award FY","Award Date","Title","Project Period","NOFO Number","Center Scope","Action Type","Program Family","Data Note"]
["SP084776-01","INTERACTION, INC. dba YOUTH SERVICES, INC.","BRATTLEBORO","VT",250000.0,2025.0,"2025-09-30","Strategic Prevention Framework – Partnerships for Success for Communities and Tribes","2025/09/30-2030/09/29","SP-25-002",{"$f":"IF(LEFT(A2,2)=\"SP\",\"CSAP (SP)\",\"Other center (TI)\")","v":"CSAP (SP)"},{"$f":"IF(RIGHT(A2,3)=\"-01\",\"New Start\",\"Continuation / Other\")","v":"New Start"},"SPF-PFS","Suffix present"]
["SP084968-01","VILLAGE FOR FAMILIES AND CHILDREN, INC.","HARTFORD","CT",250000.0,2025.0,"2025-09-29","Strategic Prevention Framework – Partnerships for Success for Communities and Tribes","2025/09/30-2030/09/29","SP-25-002","CSAP (SP)","New Start","SPF-PFS","Suffix present"]
["SP084801-01","TOWN OF MIDDLETOWN","MIDDLETOWN","RI",250000.0,2025.0,"2025-09-29","Strategic Prevention Framework – Partnerships for Success for Communities and Tribes","2025/09/30-2030/09/29","SP-25-002","CSAP (SP)","New Start","SPF-PFS","Suffix present"]
["SP084876-01","MEDFORD, CITY OF","MEDFORD","MA",250000.0,2025.0,"2025-09-29","Strategic Prevention Framework – Partnerships for Success for Communities and Tribes","2025/09/30-2030/09/29","SP-25-002","CSAP (SP)","New Start","SPF-PFS","Suffix present"]
["SP084601-01","CHILD HEALTH/DEVELOPMENT INSTITUTE OF CT","FARMINGTON","CT",425000.0,2025.0,"2025-09-29","Strategic Prevention Framework – Partnerships for Success for Communities and Tribes","2025/09/30-2030/09/29","SP-25-002","CSAP (SP)","New Start","SPF-PFS","Suffix present"]
["SP084685-01","GANDARA MENTAL HEALTH CENTER","WEST SPRINGFIELD","MA",425000.0,2025.0,"2025-09-29","Strategic Prevention Framework – Partnerships for Success for Communities and Tribes","2025/09/30-2030/09/29","SP-25-002","CSAP (SP)","New Start","SPF-PFS","Suffix present"]
["SP084326-02S1","ADCARE EDUCATIONAL INSTITUTE OF MAINE, INC.","AUGUSTA","ME",227272.0,2025.0,"2025-09-29","FY 2024 Prevention Technology Transfer Centers Cooperative Agreements","2024/09/30-2029/09/29","SP-24-002","CSAP (SP)","Continuation / Other","PTTC","Suffix present"]
["SP084399-02","BRIDGES HEALTHCARE, INC.","MILFORD","CT",60000.0,2025.0,"2025-09-29","Sober Truth on Preventing Underage Drinking Act Grants","2024/09/30-2028/09/29","SP-24-001","CSAP (SP)","Continuation / Other","STOP Act","Suffix present"]
["SP084405-02","BRIDGES HEALTHCARE, INC.","MILFORD","CT",60000.0,2025.0,"2025-09-29","Sober Truth on Preventing Underage Drinking Act Grants","2024/09/30-2028/09/29","SP-24-001","CSAP (SP)","Continuation / Other","STOP Act","Suffix present"]
["SP084169-02","CENTRAL VERMONT MEDICAL CENTER, INC.","BERLIN","VT",374304.0,2025.0,"2025-09-29","Strategic Prevention Framework-Partnerships for Success for Communities, Local Governments, Universities, Colleges, and Tribes/Tribal Organizations","2024/09/30-2029/09/29","SP-23-004","CSAP (SP)","Continuation / Other","SPF-PFS","Suffix present"]
["SP083808-03","BOSTON PUBLIC HEALTH COMMISSION","BOSTON","MA",31113.0,2025.0,"2025-09-29","Strategic Prevention Framework-Partnerships for Success for Communities, Local Governments, Universities, Colleges, and Tribes/Tribal Organizations","2023/09/30-2028/09/29","SP-23-004","CSAP (SP)","Continuation / Other","SPF-PFS","Suffix present"]
["SP083624-03","COASTLINE EAP (EMPLOYEE ASSISTANCE PROGRAM)","WARWICK","RI",60000.0,2025.0,"2025-09-29","FY 2023 Sober Truth on Preventing Underage Drinking Act Grants","2023/09/30-2027/09/29","SP-23-002","CSAP (SP)","Continuation / Other","STOP Act","Suffix present"]
["SP083570-03","MEDWAY PUBLIC SCHOOLS","MEDWAY","MA",48000.0,2025.0,"2025-09-29","FY 2023 Sober Truth on Preventing Underage Drinking Act Grants","2023/09/30-2027/09/29","SP-23-002","CSAP (SP)","Continuation / Other","STOP Act","Suffix present"]
["SP083488-03","COMMUNITY AGAINST SUBSTANCE ABUSE","WINTHROP","MA",60000.0,2025.0,"2025-09-29","FY 2023 Sober Truth on Preventing Underage Drinking Act Grants","2023/09/30-2027/09/29","SP-23-002","CSAP (SP)","Continuation / Other","STOP Act","Suffix present"]
["SP083525-03","TOWN OF STRATFORD","STRATFORD","CT",60000.0,2025.0,"2025-09-29","FY 2023 Sober Truth on Preventing Underage Drinking Act Grants","2023/09/30-2027/09/29","SP-23-002","CSAP (SP)","Continuation / Other","STOP Act","Suffix present"]
["SP083346-04","MAINE STATE DEPT/HEALTH/HUMAN SERVS","AUGUSTA","ME",1250000.0,2025.0,"2025-09-29","Strategic Prevention Framework-Partnerships for Success","2022/09/30-2027/09/29","SP-22-004","CSAP (SP)","Continuation / Other","SPF-PFS","Suffix present"]
["SP083356-04","CITY OF DOVER","DOVER","NH",375000.0,2025.0,"2025-09-29","Strategic Prevention Framework-Partnerships for Success","2022/09/30-2027/09/29","SP-22-004","CSAP (SP)","Continuation / Other","SPF-PFS","Suffix present"]
["SP083251-04","VICTORY PROGRAMS, INC.","BOSTON","MA",248739.0,2025.0,"2025-09-29","Substance Abuse and HIV Prevention Navigator Program for Racial/Ethnic Minorities Cooperative Agreement","2022/09/30-2027/09/29","SP-22-002","CSAP (SP)","Continuation / Other","HIV Prevention","Suffix present"]
["SP082273-05","WHITTIER STREET HEALTH CENTER, INC.","ROXBURY","MA",200000.0,2025.0,"2025-09-29","Capacity Building Initiative for Substance Abuse (SA) and HIV Prevention Services for At-Risk Racial/Ethnic Minority Youth and Young Adults","2021/08/31-2026/08/30","SP-20-001","CSAP (SP)","Continuation / Other","HIV Prevention","Suffix present"]
["SP083238-04","BROCKTON AREA MULTI-SERVICES, INC.","BROCKTON","MA",249205.0,2025.0,"2025-09-29","Substance Abuse and HIV Prevention Navigator Program for Racial/Ethnic Minorities Cooperative Agreement","2022/09/30-2027/09/29","SP-22-002","CSAP (SP)","Continuation / Other","HIV Prevention","Suffix present"]
["SP082229-05","WABANAKI HEALTH AND WELLNESS","BANGOR","ME",200000.0,2025.0,"2025-09-29","Capacity Building Initiative for Substance Abuse (SA) and HIV Prevention Services for At-Risk Racial/Ethnic Minority Youth and Young Adults","2021/08/31-2026/08/30","SP-20-001","CSAP (SP)","Continuation / Other","HIV Prevention","Suffix present"]
["TI087391-02","VERMONT STATE AGENCY OF HUMAN SERVICES","WATERBURY","VT",800000.0,2025.0,"2025-09-26","FY 2024 First Responders-Comprehensive Addiction and Recovery Act","2024/09/30-2028/09/29","TI-24-006","Other center (TI)","Continuation / Other","First Responders-CARA","Suffix present"]
["TI087399-02","CITY OF PROVIDENCE","PROVIDENCE","RI",572578.0,2025.0,"2025-09-26","FY 2024 First Responders-Comprehensive Addiction and Recovery Act","2024/09/30-2028/09/29","TI-24-006","Other center (TI)","Continuation / Other","First Responders-CARA","Suffix present"]
["SP084975-01","VERMONT STATE AGENCY OF HUMAN SERVICES","WATERBURY","VT",2000000.0,2025.0,"2025-09-26","Strategic Prevention Framework Partnership for Success for States","2025/09/30-2030/09/29","SP-25-003","CSAP (SP)","New Start","SPF-PFS","Suffix present"]
["SP084825-01","REALITY CHECK, INC.","JAFFREY","NH",60000.0,2025.0,"2025-09-26","Sober Truth on Preventing Underage Drinking Act Grants","2025/09/30-2029/09/29","SP-25-001","CSAP (SP)","New Start","STOP Act","Suffix present"]
["SP084942-01","YMCA OF THE NORTH SHORE, INC.","BEVERLY","MA",60000.0,2025.0,"2025-09-26","Sober Truth on Preventing Underage Drinking Act Grants","2025/09/30-2029/09/29","SP-25-001","CSAP (SP)","New Start","STOP Act","Suffix present"]
["SP084639-01","BOYS & GIRLS CLUB OF BRATTLEBORO INC","BRATTLEBORO","VT",60000.0,2025.0,"2025-09-26","Sober Truth on Preventing Underage Drinking Act Grants","2025/09/30-2029/09/29","SP-25-001","CSAP (SP)","New Start","STOP Act","Suffix present"]
["SP084634-01","TOWN OF ENFIELD BOARD OF EDUCATION","ENFIELD","CT",60000.0,2025.0,"2025-09-26","Sober Truth on Preventing Underage Drinking Act Grants","2025/09/30-2029/09/29","SP-25-001","CSAP (SP)","New Start","STOP Act","Suffix present"]
["SP084615-01","TRI-COUNTY COMMUNITY ACTION AGENCY","Johnston","RI",60000.0,2025.0,"2025-09-26","Sober Truth on Preventing Underage Drinking Act Grants","2025/09/30-2029/09/29","SP-25-001","CSAP (SP)","New Start","STOP Act","Suffix present"]
["SP083499-03","INTERACTION, INC. dba YOUTH SERVICES, INC.","BRATTLEBORO","VT",56900.0,2025.0,"2025-09-26","FY 2023 Sober Truth on Preventing Underage Drinking Act Grants","2023/09/30-2027/09/29","SP-23-002","CSAP (SP)","Continuation / Other","STOP Act","Suffix present"]
["SP084326-02","ADCARE EDUCATIONAL INSTITUTE OF MAINE, INC.","AUGUSTA","ME",739377.0,2025.0,"2025-09-25","FY 2024 Prevention Technology Transfer Centers Cooperative Agreements","2024/09/30-2029/09/29","SP-24-002","CSAP (SP)","Continuation / Other","PTTC","Suffix present"]
["SP084503-02","DARTMOUTH-HITCHCOCK","LEBANON","NH",59994.0,2025.0,"2025-09-25","Sober Truth on Preventing Underage Drinking Act Grants","2024/09/30-2028/09/29","SP-24-001","CSAP (SP)","Continuation / Other","STOP Act","Suffix present"]
["SP084348-02","HIGH POINT TREATMENT CENTER, INC.","NEW BEDFORD","MA",60000.0,2025.0,"2025-09-25","Sober Truth on Preventing Underage Drinking Act Grants","2024/09/30-2028/09/29","SP-24-001","CSAP (SP)","Continuation / Other","STOP Act","Suffix present"]
["SP084354-02","NAUGATUCK YOUTH SERVICES, INC.","NAUGATUCK","CT",60000.0,2025.0,"2025-09-25","Sober Truth on Preventing Underage Drinking Act Grants","2024/09/30-2028/09/29","SP-24-001","CSAP (SP)","Continuation / Other","STOP Act","Suffix present"]
["SP084330-02","TOWN OF MIDDLETOWN","MIDDLETOWN","RI",60000.0,2025.0,"2025-09-25","Sober Truth on Preventing Underage Drinking Act Grants","2024/09/30-2028/09/29","SP-24-001","CSAP (SP)","Continuation / Other","STOP Act","Suffix present"]
["SP084341-02","LYNNFIELD, TOWN OF (INC)","LYNNFIELD","MA",60000.0,2025.0,"2025-09-25","Sober Truth on Preventing Underage Drinking Act Grants","2024/09/30-2028/09/29","SP-24-001","CSAP (SP)","Continuation / Other","STOP Act","Suffix present"]
["SP084344-02","TOWN OF ASHLAND","ASHLAND","MA",60000.0,2025.0,"2025-09-25","Sober Truth on Preventing Underage Drinking Act Grants","2024/09/30-2028/09/29","SP-24-001","CSAP (SP)","Continuation / Other","STOP Act","Suffix present"]
["SP082763-05","MASSACHUSETTS STATE DEPT OF PUB HEALTH","BOSTON","MA",384000.0,2025.0,"2025-09-25","Strategic Prevention Framework for Prescription Drugs","2021/09/30-2026/09/29","SP-21-001","CSAP (SP)","Continuation / Other","SPF Prescription Drugs","Suffix present"]
["SP082772-04","MAINE STATE DEPT/HEALTH/HUMAN SERVS","AUGUSTA","ME",384000.0,2025.0,"2025-09-25","Strategic Prevention Framework for Prescription Drugs","2021/09/30-2026/09/29","SP-21-001","CSAP (SP)","Continuation / Other","SPF Prescription Drugs","Suffix present"]
["SP084402-02","TOWN OF WARE","WARE","MA",60000.0,2025.0,"2025-09-25","Sober Truth on Preventing Underage Drinking Act Grants","2024/09/30-2028/09/29","SP-24-001","CSAP (SP)","Continuation / Other","STOP Act","Suffix present"]
["SP084477-02","COMMUNITIES FOR ALCOHOL AND DRUG FREE YOUTH, INC. (CADY)","PLYMOUTH","NH",60000.0,2025.0,"2025-09-25","Sober Truth on Preventing Underage Drinking Act Grants","2024/09/30-2028/09/29","SP-24-001","CSAP (SP)","Continuation / Other","STOP Act","Suffix present"]
["SP083615-03","OLD COLONY YMCA","BROCKTON","MA",60000.0,2025.0,"2025-09-25","FY 2023 Sober Truth on Preventing Underage Drinking Act Grants","2023/09/30-2027/09/29","SP-23-002","CSAP (SP)","Continuation / Other","STOP Act","Suffix present"]
["SP083622-03","MAINEHEALTH","PORTLAND","ME",60000.0,2025.0,"2025-09-25","FY 2023 Sober Truth on Preventing Underage Drinking Act Grants","2023/09/30-2027/09/29","SP-23-002","CSAP (SP)","Continuation / Other","STOP Act","Suffix present"]
["SP083469-04","MRH CORP.","DOVER FOXCROFT","ME",50000.0,2025.0,"2025-09-25","STOP Act Grants","2022/09/30-2026/09/29","SP-22-006","CSAP (SP)","Continuation / Other","STOP Act","Suffix present"]
["SP083332-04","CONNECTICUT ST DEPT OF MH/ADDICTION SRVS","HARTFORD","CT",1250000.0,2025.0,"2025-09-25","Strategic Prevention Framework-Partnerships for Success","2022/09/30-2027/09/29","SP-22-004","CSAP (SP)","Continuation / Other","SPF-PFS","Suffix present"]
["SP083435-04","CITY OF DOVER","DOVER","NH",50000.0,2025.0,"2025-09-25","STOP Act Grants","2022/09/30-2026/09/29","SP-22-006","CSAP (SP)","Continuation / Other","STOP Act","Suffix present"]
["SP084497-02","BAY STATE COMMUNITY SERVICES, INC.","QUINCY","MA",60000.0,2025.0,"2025-09-22","Sober Truth on Preventing Underage Drinking Act Grants","2024/09/30-2028/09/29","SP-24-001","CSAP (SP)","Continuation / Other","STOP Act","Suffix present"]
["SP084436-02","PINETREE INSTITUTE","ELIOT","ME",60000.0,2025.0,"2025-09-22","Sober Truth on Preventing Underage Drinking Act Grants","2024/09/30-2028/09/29","SP-24-001","CSAP (SP)","Continuation / Other","STOP Act","Suffix present"]
["SP084442-02","CITY OF GLOUCESTER","GLOUCESTER","MA",60000.0,2025.0,"2025-09-22","Sober Truth on Preventing Underage Drinking Act Grants","2024/09/30-2028/09/29","SP-24-001","CSAP (SP)","Continuation / Other","STOP Act","Suffix present"]
["SP084449-02","L U K CRISIS CENTER, INC.","FITCHBURG","MA",60000.0,2025.0,"2025-09-22","Sober Truth on Preventing Underage Drinking Act Grants","2024/09/30-2028/09/29","SP-24-001","CSAP (SP)","Continuation / Other","STOP Act","Suffix present"]
["SP083836-03","AMOSKEAG HEALTH","MANCHESTER","NH",291166.0,2025.0,"2025-09-22","Strategic Prevention Framework-Partnerships for Success for Communities, Local Governments, Universities, Colleges, and Tribes/Tribal Organizations","2023/09/30-2028/09/29","SP-23-004","CSAP (SP)","Continuation / Other","SPF-PFS","Suffix present"]
["SP084039","NORTH COUNTRY HEALTH CONSORTIUM, INC.","LITTLETON","NH",375000.0,2025.0,"2025-09-18","Strategic Prevention Framework-Partnerships for Success for Communities, Local Governments, Universities, Colleges, and Tribes/Tribal Organizations","2024/09/30-2029/09/29","SP-23-004","CSAP (SP)","Continuation / Other","SPF-PFS","Award-year suffix missing in source"]
["SP083978","HIGH POINT TREATMENT CENTER, INC.","NEW BEDFORD","MA",375000.0,2025.0,"2025-09-18","Strategic Prevention Framework-Partnerships for Success for Communities, Local Governments, Universities, Colleges, and Tribes/Tribal Organizations","2024/09/30-2029/09/29","SP-23-004","CSAP (SP)","Continuation / Other","SPF-PFS","Award-year suffix missing in source"]
["SP083730","FRANKLIN REGIONAL COUNCIL OF GOVERNMENTS","GREENFIELD","MA",375000.0,2025.0,"2025-09-18","Strategic Prevention Framework-Partnerships for Success for Communities, Local Governments, Universities, Colleges, and Tribes/Tribal Organizations","2023/09/30-2028/09/29","SP-23-004","CSAP (SP)","Continuation / Other","SPF-PFS","Award-year suffix missing in source"]
["SP083475","EAST HADDAM YOUTH AND FAMILY SERVICES","MOODUS","CT",50000.0,2025.0,"2025-09-16","STOP Act Grants","2022/09/30-2026/09/29","SP-22-006","CSAP (SP)","Continuation / Other","STOP Act","Award-year suffix missing in source"]
["SP083439","WINDHAM SOUTHWEST SUPERVISORY UNION","WILMINGTON","VT",50000.0,2025.0,"2025-09-16","STOP Act Grants","2022/09/30-2026/09/29","SP-22-006","CSAP (SP)","Continuation / Other","STOP Act","Award-year suffix missing in source"]
["SP083458","SOUTHEASTERN REGIONAL ACTION COUNCIL, INC.","NORWICH","CT",49724.0,2025.0,"2025-09-16","STOP Act Grants","2022/09/30-2026/09/29","SP-22-006","CSAP (SP)","Continuation / Other","STOP Act","Award-year suffix missing in source"]
["SP083379","HAMPDEN-WILBRAHAM REGIONAL SCHOOL DIST","WILBRAHAM","MA",49986.0,2025.0,"2025-09-16","STOP Act Grants","2022/09/30-2026/09/29","SP-22-006","CSAP (SP)","Continuation / Other","STOP Act","Award-year suffix missing in source"]
["SP082739","MAINE STATE DEPT/HEALTH/HUMAN SERVS","AUGUSTA","ME",684000.0,2025.0,"2025-09-15","Grants to Prevent Prescription Drug/Opioid Overdose-Related Deaths","2021/08/31-2026/08/30","SP-21-002","CSAP (SP)","Continuation / Other","Overdose Prevention","Award-year suffix missing in source"]
["SP082724","CONNECTICUT ST DEPT OF MH/ADDICTION SRVS","HARTFORD","CT",850000.0,2025.0,"2025-09-15","Grants to Prevent Prescription Drug/Opioid Overdose-Related Deaths","2023/08/31-2028/08/30","SP-21-002","CSAP (SP)","Continuation / Other","Overdose Prevention","Award-year suffix missing in source"]
["SP082725","MASSACHUSETTS STATE DEPT OF PUB HEALTH","BOSTON","MA",486000.0,2025.0,"2025-09-15","Grants to Prevent Prescription Drug/Opioid Overdose-Related Deaths","2022/08/31-2027/08/30","SP-21-002","CSAP (SP)","Continuation / Other","Overdose Prevention","Award-year suffix missing in source"]
["SP082768","CONNECTICUT ST DEPT OF MH/ADDICTION SRVS","HARTFORD","CT",384000.0,2025.0,"2025-09-15","Strategic Prevention Framework for Prescription Drugs","2021/09/30-2026/09/29","SP-21-001","CSAP (SP)","Continuation / Other","SPF Prescription Drugs","Award-year suffix missing in source"]
["SP083622-02","MAINEHEALTH","PORTLAND","ME",60000.0,2024.0,"2024-09-03","FY 2023 Sober Truth on Preventing Underage Drinking Act Grants","2023/09/30 - 2027/09/29","SP-23-002","CSAP (SP)","Continuation / Other","STOP Act","Suffix present"]
["SP083624-02","COASTLINE EAP (EMPLOYEE ASSISTANCE PROGRAM)","WARWICK","RI",60000.0,2024.0,"2024-09-03","FY 2023 Sober Truth on Preventing Underage Drinking Act Grants","2023/09/30 - 2027/09/29","SP-23-002","CSAP (SP)","Continuation / Other","STOP Act","Suffix present"]
["SP083615-02","OLD COLONY YMCA","BROCKTON","MA",60000.0,2024.0,"2024-09-03","FY 2023 Sober Truth on Preventing Underage Drinking Act Grants","2023/09/30 - 2027/09/29","SP-23-002","CSAP (SP)","Continuation / Other","STOP Act","Suffix present"]
["SP083570-02","MEDWAY PUBLIC SCHOOLS","MEDWAY","MA",53000.0,2024.0,"2024-09-03","FY 2023 Sober Truth on Preventing Underage Drinking Act Grants","2023/09/30 - 2027/09/29","SP-23-002","CSAP (SP)","Continuation / Other","STOP Act","Suffix present"]
["SP083525-02","TOWN OF STRATFORD","STRATFORD","CT",60000.0,2024.0,"2024-09-03","FY 2023 Sober Truth on Preventing Underage Drinking Act Grants","2023/09/30 - 2027/09/29","SP-23-002","CSAP (SP)","Continuation / Other","STOP Act","Suffix present"]
["SP083538-02","UNITED WAY OF ADDISON COUNTY","MIDDLEBURY","VT",60000.0,2024.0,"2024-09-03","FY 2023 Sober Truth on Preventing Underage Drinking Act Grants","2023/09/30 - 2027/09/29","SP-23-002","CSAP (SP)","Continuation / Other","STOP Act","Suffix present"]
["SP083502-02","MEDICAL CARE DEVELOPMENT, INC.","AUGUSTA","ME",60000.0,2024.0,"2024-09-03","FY 2023 Sober Truth on Preventing Underage Drinking Act Grants","2023/09/30 - 2027/09/29","SP-23-002","CSAP (SP)","Continuation / Other","STOP Act","Suffix present"]
["SP083499-02","YOUTH SERVICES, INC.","BRATTLEBORO","VT",56900.0,2024.0,"2024-09-03","FY 2023 Sober Truth on Preventing Underage Drinking Act Grants","2023/09/30 - 2027/09/29","SP-23-002","CSAP (SP)","Continuation / Other","STOP Act","Suffix present"]
["SP083488-02","COMMUNITY AGAINST SUBSTANCE ABUSE","WINTHROP","MA",60000.0,2024.0,"2024-09-03","FY 2023 Sober Truth on Preventing Underage Drinking Act Grants","2023/09/30 - 2027/09/29","SP-23-002","CSAP (SP)","Continuation / Other","STOP Act","Suffix present"]
["SP083489-02","SEBASTICOOK VALLEY HEALTH","PITTSFIELD","ME",60000.0,2024.0,"2024-09-03","FY 2023 Sober Truth on Preventing Underage Drinking Act Grants","2023/09/30 - 2027/09/29","SP-23-002","CSAP (SP)","Continuation / Other","STOP Act","Suffix present"]
["SP082763-04","MASSACHUSETTS STATE DEPT OF PUB HEALTH","BOSTON","MA",92836.0,2024.0,"2024-09-03","Strategic Prevention Framework for Prescription Drugs","2021/09/30 - 2026/09/29","SP-21-001","CSAP (SP)","Continuation / Other","SPF Prescription Drugs","Suffix present"]
["SP082694-05","CITY OF FRANKLIN","FRANKLIN","NH",218098.0,2024.0,"2024-09-03","Strategic Prevention Framework – Partnerships for Success","2020/08/31 - 2025/08/30","SP-20-002","CSAP (SP)","Continuation / Other","SPF-PFS","Suffix present"]
["SP082550-05","TOWN OF WARE","WARE","MA",300000.0,2024.0,"2024-09-03","Strategic Prevention Framework – Partnerships for Success","2020/08/31 - 2025/08/30","SP-20-002","CSAP (SP)","Continuation / Other","SPF-PFS","Suffix present"]
["SP082219-05","JUSTICE RESOURCE INSTITUTE","NEEDHAM","MA",25180.0,2024.0,"2024-09-03","Capacity Building Initiative for Substance Abuse (SA) and HIV Prevention Services for At-Risk Racial/Ethnic Minority Youth and Young Adults","2020/08/31 - 2025/08/30","SP-20-001","CSAP (SP)","Continuation / Other","HIV Prevention","Suffix present"]
["SP084503-01","DARTMOUTH-HITCHCOCK","LEBANON","NH",60000.0,2024.0,"2024-08-30","Sober Truth on Preventing Underage Drinking Act Grants","2024/09/30 - 2028/09/29","SP-24-001","CSAP (SP)","New Start","STOP Act","Suffix present"]
["SP084497-01","BAY STATE COMMUNITY SERVICES, INC.","QUINCY","MA",60000.0,2024.0,"2024-08-30","Sober Truth on Preventing Underage Drinking Act Grants","2024/09/30 - 2028/09/29","SP-24-001","CSAP (SP)","New Start","STOP Act","Suffix present"]
["SP084477-01","COMMUNITIES FOR ALCOHOL AND DRUG FREE YOUTH, INC. (CADY)","PLYMOUTH","NH",60000.0,2024.0,"2024-08-30","Sober Truth on Preventing Underage Drinking Act Grants","2024/09/30 - 2028/09/29","SP-24-001","CSAP (SP)","New Start","STOP Act","Suffix present"]
["SP084449-01","L U K CRISIS CENTER, INC.","FITCHBURG","MA",60000.0,2024.0,"2024-08-30","Sober Truth on Preventing Underage Drinking Act Grants","2024/09/30 - 2028/09/29","SP-24-001","CSAP (SP)","New Start","STOP Act","Suffix present"]
["SP084436-01","PINETREE INSTITUTE","ELIOT","ME",60000.0,2024.0,"2024-08-30","Sober Truth on Preventing Underage Drinking Act Grants","2024/09/30 - 2028/09/29","SP-24-001","CSAP (SP)","New Start","STOP Act","Suffix present"]
["SP084442-01","CITY OF GLOUCESTER","GLOUCESTER","MA",60000.0,2024.0,"2024-08-30","Sober Truth on Preventing Underage Drinking Act Grants","2024/09/30 - 2028/09/29","SP-24-001","CSAP (SP)","New Start","STOP Act","Suffix present"]
["SP084399-01","BRIDGES HEALTHCARE, INC.","MILFORD","CT",60000.0,2024.0,"2024-08-30","Sober Truth on Preventing Underage Drinking Act Grants","2024/09/30 - 2025/09/29","SP-24-001","CSAP (SP)","New Start","STOP Act","Suffix present"]
["SP084402-01","TOWN OF WARE","WARE","MA",60000.0,2024.0,"2024-08-30","Sober Truth on Preventing Underage Drinking Act Grants","2024/09/30 - 2028/09/29","SP-24-001","CSAP (SP)","New Start","STOP Act","Suffix present"]
["SP084405-01","BRIDGES HEALTHCARE, INC.","MILFORD","CT",60000.0,2024.0,"2024-08-30","Sober Truth on Preventing Underage Drinking Act Grants","2024/09/30 - 2025/09/29","SP-24-001","CSAP (SP)","New Start","STOP Act","Suffix present"]
["SP084348-01","HIGH POINT TREATMENT CENTER, INC.","NEW BEDFORD","MA",60000.0,2024.0,"2024-08-30","Sober Truth on Preventing Underage Drinking Act Grants","2024/09/30 - 2028/09/29","SP-24-001","CSAP (SP)","New Start","STOP Act","Suffix present"]
["SP084354-01","NAUGATUCK YOUTH SERVICES, INC.","NAUGATUCK","CT",60000.0,2024.0,"2024-08-30","Sober Truth on Preventing Underage Drinking Act Grants","2024/09/30 - 2028/09/29","SP-24-001","CSAP (SP)","New Start","STOP Act","Suffix present"]
["SP084341-01","LYNNFIELD, TOWN OF (INC)","LYNNFIELD","MA",60000.0,2024.0,"2024-08-30","Sober Truth on Preventing Underage Drinking Act Grants","2024/09/30 - 2028/09/29","SP-24-001","CSAP (SP)","New Start","STOP Act","Suffix present"]
["SP084344-01","TOWN OF ASHLAND","ASHLAND","MA",60000.0,2024.0,"2024-08-30","Sober Truth on Preventing Underage Drinking Act Grants","2024/09/30 - 2028/09/29","SP-24-001","CSAP (SP)","New Start","STOP Act","Suffix present"]
["SP084330-01","TOWN OF MIDDLETOWN","MIDDLETOWN","RI",60000.0,2024.0,"2024-08-30","Sober Truth on Preventing Underage Drinking Act Grants","2024/09/29 - 2028/09/30","SP-24-001","CSAP (SP)","New Start","STOP Act","Suffix present"]
["SP084326-01","ADCARE EDUCATIONAL INSTITUTE OF MAINE, INC.","AUGUSTA","ME",739381.0,2024.0,"2024-08-28","FY 2024 Prevention Technology Transfer Centers Cooperative Agreements","2024/09/30 - 2029/09/29","SP-24-002","CSAP (SP)","New Start","PTTC","Suffix present"]
["TI087399-01","CITY OF PROVIDENCE","PROVIDENCE","RI",552153.0,2024.0,"2024-08-28","FY 2024 First Responders-Comprehensive Addiction and Recovery Act","2024/09/30 - 2028/09/29","TI-24-006","Other center (TI)","New Start","First Responders-CARA","Suffix present"]
["TI087391-01","VERMONT STATE AGENCY OF HUMAN SERVICES","WATERBURY","VT",800000.0,2024.0,"2024-08-28","FY 2024 First Responders-Comprehensive Addiction and Recovery Act","2024/09/30 - 2028/09/29","TI-24-006","Other center (TI)","New Start","First Responders-CARA","Suffix present"]
["SP084169-01","CENTRAL VERMONT MEDICAL CENTER, INC.","BERLIN","VT",374922.0,2024.0,"2024-08-23","Strategic Prevention Framework-Partnerships for Success for Communities, Local Governments, Universities, Colleges, and Tribes/Tribal Organizations","2024/09/30 - 2029/09/29","SP-23-004","CSAP (SP)","New Start","SPF-PFS","Suffix present"]
["SP084039-01","NORTH COUNTRY HEALTH CONSORTIUM, INC.","LITTLETON","NH",375000.0,2024.0,"2024-08-23","Strategic Prevention Framework-Partnerships for Success for Communities, Local Governments, Universities, Colleges, and Tribes/Tribal Organizations","2024/09/30 - 2029/09/29","SP-23-004","CSAP (SP)","New Start","SPF-PFS","Suffix present"]
["SP083978-01","HIGH POINT TREATMENT CENTER, INC.","NEW BEDFORD","MA",375000.0,2024.0,"2024-08-23","Strategic Prevention Framework-Partnerships for Success for Communities, Local Governments, Universities, Colleges, and Tribes/Tribal Organizations","2024/09/30 - 2029/09/29","SP-23-004","CSAP (SP)","New Start","SPF-PFS","Suffix present"]
["SP083836-02","AMOSKEAG HEALTH","MANCHESTER","NH",288100.0,2024.0,"2024-08-01","Strategic Prevention Framework-Partnerships for Success for Communities, Local Governments, Universities, Colleges, and Tribes/Tribal Organizations","2023/09/30 - 2028/09/29","SP-23-004","CSAP (SP)","Continuation / Other","SPF-PFS","Suffix present"]
["SP083808-02","BOSTON PUBLIC HEALTH COMMISSION","BOSTON","MA",374905.0,2024.0,"2024-08-01","Strategic Prevention Framework-Partnerships for Success for Communities, Local Governments, Universities, Colleges, and Tribes/Tribal Organizations","2023/09/30 - 2028/09/29","SP-23-004","CSAP (SP)","Continuation / Other","SPF-PFS","Suffix present"]
["SP083730-02","FRANKLIN REGIONAL COUNCIL OF GOVERNMENTS","GREENFIELD","MA",375000.0,2024.0,"2024-08-01","Strategic Prevention Framework-Partnerships for Success for Communities, Local Governments, Universities, Colleges, and Tribes/Tribal Organizations","2023/09/30 - 2028/09/29","SP-23-004","CSAP (SP)","Continuation / Other","SPF-PFS","Suffix present"]
["SP083469-03","MRH CORP.","DOVER FOXCROFT","ME",50000.0,2024.0,"2024-08-01","STOP Act Grants","2022/09/30 - 2026/09/29","SP-22-006","CSAP (SP)","Continuation / Other","STOP Act","Suffix present"]
["SP083475-03","EAST HADDAM YOUTH AND FAMILY SERVICES","MOODUS","CT",50000.0,2024.0,"2024-08-01","STOP Act Grants","2022/09/30 - 2026/09/29","SP-22-006","CSAP (SP)","Continuation / Other","STOP Act","Suffix present"]
["SP083458-03","SOUTHEASTERN REGIONAL ACTION COUNCIL, INC.","NORWICH","CT",49724.0,2024.0,"2024-08-01","STOP Act Grants","2022/09/30 - 2026/09/29","SP-22-006","CSAP (SP)","Continuation / Other","STOP Act","Suffix present"]
["SP083439-03","WINDHAM SOUTHWEST SUPERVISORY UNION","WILMINGTON","VT",50000.0,2024.0,"2024-08-01","STOP Act Grants","2022/09/30 - 2026/09/29","SP-22-006","CSAP (SP)","Continuation / Other","STOP Act","Suffix present"]
["SP083435-03","CITY OF DOVER","DOVER","NH",50000.0,2024.0,"2024-08-01","STOP Act Grants","2022/09/30 - 2026/09/29","SP-22-006","CSAP (SP)","Continuation / Other","STOP Act","Suffix present"]
["SP083379-03","HAMPDEN-WILBRAHAM REGIONAL SCHOOL DIST","WILBRAHAM","MA",49996.0,2024.0,"2024-08-01","STOP Act Grants","2022/09/30 - 2026/09/29","SP-22-006","CSAP (SP)","Continuation / Other","STOP Act","Suffix present"]
["SP083356-03","CITY OF DOVER","DOVER","NH",375000.0,2024.0,"2024-08-01","Strategic Prevention Framework-Partnerships for Success","2022/09/30 - 2027/09/29","SP-22-004","CSAP (SP)","Continuation / Other","SPF-PFS","Suffix present"]
["SP083332-03","CONNECTICUT ST DEPT OF MH/ADDICTION SRVS","HARTFORD","CT",1250000.0,2024.0,"2024-08-01","Strategic Prevention Framework-Partnerships for Success","2022/09/30 - 2027/09/29","SP-22-004","CSAP (SP)","Continuation / Other","SPF-PFS","Suffix present"]
["SP083346-03","MAINE STATE DEPT/HEALTH/HUMAN SERVS","AUGUSTA","ME",1070854.0,2024.0,"2024-08-01","Strategic Prevention Framework-Partnerships for Success","2022/09/30 - 2027/09/29","SP-22-004","CSAP (SP)","Continuation / Other","SPF-PFS","Suffix present"]
["SP083251-03","VICTORY PROGRAMS, INC.","BOSTON","MA",248739.0,2024.0,"2024-08-01","Substance Abuse and HIV Prevention Navigator Program for Racial/Ethnic Minorities Cooperative Agreement","2022/09/30 - 2027/09/29","SP-22-002","CSAP (SP)","Continuation / Other","HIV Prevention","Suffix present"]
["SP083238-03","BROCKTON AREA MULTI-SERVICES, INC.","BROCKTON","MA",249205.0,2024.0,"2024-08-01","Substance Abuse and HIV Prevention Navigator Program for Racial/Ethnic Minorities Cooperative Agreement","2022/09/30 - 2027/09/29","SP-22-002","CSAP (SP)","Continuation / Other","HIV Prevention","Suffix present"]
["SP082772-03","MAINE STATE DEPT/HEALTH/HUMAN SERVS","AUGUSTA","ME",384000.0,2024.0,"2024-08-01","Strategic Prevention Framework for Prescription Drugs","2021/09/30 - 2026/09/29","SP-21-001","CSAP (SP)","Continuation / Other","SPF Prescription Drugs","Suffix present"]
["SP082768-04","CONNECTICUT ST DEPT OF MH/ADDICTION SRVS","HARTFORD","CT",384000.0,2024.0,"2024-08-01","Strategic Prevention Framework for Prescription Drugs","2021/09/30 - 2026/09/29","SP-21-001","CSAP (SP)","Continuation / Other","SPF Prescription Drugs","Suffix present"]
["SP082739-04","MAINE STATE DEPT/HEALTH/HUMAN SERVS","AUGUSTA","ME",850000.0,2024.0,"2024-08-01","Grants to Prevent Prescription Drug/Opioid Overdose-Related Deaths","2021/08/31 - 2026/08/30","SP-21-002","CSAP (SP)","Continuation / Other","Overdose Prevention","Suffix present"]
["SP082724-02","CONNECTICUT ST DEPT OF MH/ADDICTION SRVS","HARTFORD","CT",850000.0,2024.0,"2024-08-01","Grants to Prevent Prescription Drug/Opioid Overdose-Related Deaths","2023/08/31 - 2028/08/30","SP-21-002","CSAP (SP)","Continuation / Other","Overdose Prevention","Suffix present"]
["SP082725-03","MASSACHUSETTS STATE DEPT OF PUB HEALTH","BOSTON","MA",850000.0,2024.0,"2024-08-01","Grants to Prevent Prescription Drug/Opioid Overdose-Related Deaths","2022/08/31 - 2027/08/30","SP-21-002","CSAP (SP)","Continuation / Other","Overdose Prevention","Suffix present"]
["SP082568-05","COLLABORATIVE FOR EDUCATIONAL SERVICES","NORTHAMPTON","MA",300000.0,2024.0,"2024-08-01","Strategic Prevention Framework – Partnerships for Success","2020/08/31 - 2025/08/30","SP-20-002","CSAP (SP)","Continuation / Other","SPF-PFS","Suffix present"]
["SP082546-05","MOUNTAIN COMMUNITIES SUPPORTING EDUCATION, INC.","LONDONDERRY","VT",300000.0,2024.0,"2024-08-01","Strategic Prevention Framework – Partnerships for Success","2020/08/31 - 2025/08/30","SP-20-002","CSAP (SP)","Continuation / Other","SPF-PFS","Suffix present"]
["SP082479-05","BRIDGES HEALTHCARE, INC.","MILFORD","CT",300000.0,2024.0,"2024-08-01","Strategic Prevention Framework – Partnerships for Success","2020/08/31 - 2025/08/30","SP-20-002","CSAP (SP)","Continuation / Other","SPF-PFS","Suffix present"]
["SP082504-05","VERMONT STATE AGENCY OF HUMAN SERVICES","WATERBURY","VT",1000000.0,2024.0,"2024-08-01","Strategic Prevention Framework – Partnerships for Success","2020/08/31 - 2025/08/30","SP-20-002","CSAP (SP)","Continuation / Other","SPF-PFS","Suffix present"]
["SP082391-05","CITY OF PROVIDENCE","PROVIDENCE","RI",300000.0,2024.0,"2024-08-01","Strategic Prevention Framework – Partnerships for Success","2020/08/31 - 2025/08/30","SP-20-002","CSAP (SP)","Continuation / Other","SPF-PFS","Suffix present"]
["SP082290-05","MULTICULTURAL AIDS COALITION","Roxbury","MA",200000.0,2024.0,"2024-08-01","Capacity Building Initiative for Substance Abuse (SA) and HIV Prevention Services for At-Risk Racial/Ethnic Minority Youth and Young Adults","2020/08/31 - 2025/08/30","SP-20-001","CSAP (SP)","Continuation / Other","HIV Prevention","Suffix present"]
["SP082280-04","PERCEPTION PROGRAMS, INC.","WILLIMANTIC","CT",200000.0,2024.0,"2024-08-01","Capacity Building Initiative for Substance Abuse (SA) and HIV Prevention Services for At-Risk Racial/Ethnic Minority Youth and Young Adults","2021/08/31 - 2026/08/30","SP-20-001","CSAP (SP)","Continuation / Other","HIV Prevention","Suffix present"]
["SP082273-04","WHITTIER STREET HEALTH CENTER, INC.","ROXBURY","MA",200000.0,2024.0,"2024-08-01","Capacity Building Initiative for Substance Abuse (SA) and HIV Prevention Services for At-Risk Racial/Ethnic Minority Youth and Young Adults","2021/08/31 - 2026/08/30","SP-20-001","CSAP (SP)","Continuation / Other","HIV Prevention","Suffix present"]
["SP082229-04","WABANAKI HEALTH AND WELLNESS","BANGOR","ME",200000.0,2024.0,"2024-08-01","Capacity Building Initiative for Substance Abuse (SA) and HIV Prevention Services for At-Risk Racial/Ethnic Minority Youth and Young Adults","2021/08/31 - 2026/08/30","SP-20-001","CSAP (SP)","Continuation / Other","HIV Prevention","Suffix present"]
["SP083684-02","RHODE ISLAND DEPT OF BEHAVIORAL HEALTHCARE/DEVELOPMENTAL DISABILITIES/HOSP","CRANSTON","RI",1250000.0,2024.0,"2024-07-02","FY 2023 Strategic Prevention Framework-Partnerships for Success for States","2023/09/30 - 2028/09/29","SP-23-003","CSAP (SP)","Continuation / Other","SPF-PFS","Suffix present"]
["SP081223-04","TOWN OF NEEDHAM","NEEDHAM","MA",50000.0,2024.0,"2024-04-02","Sober Truth on Preventing Underage Drinking Act Grants","2021/04/30 - 2025/04/29","SP-19-003","CSAP (SP)","Continuation / Other","STOP Act","Suffix present"]
["SP083836-01","AMOSKEAG HEALTH","MANCHESTER","NH",374384.0,2023.0,"2023-09-19","Strategic Prevention Framework-Partnerships for Success for Communities, Local Governments, Universities, Colleges, and Tribes/Tribal Organizations","2023/09/30 - 2028/09/29","SP-23-004","CSAP (SP)","New Start","SPF-PFS","Suffix present"]
["SP083808-01","BOSTON PUBLIC HEALTH COMMISSION","BOSTON","MA",374905.0,2023.0,"2023-09-19","Strategic Prevention Framework-Partnerships for Success for Communities, Local Governments, Universities, Colleges, and Tribes/Tribal Organizations","2023/09/30 - 2028/09/29","SP-23-004","CSAP (SP)","New Start","SPF-PFS","Suffix present"]
["SP083730-01","FRANKLIN REGIONAL COUNCIL OF GOVERNMENTS","GREENFIELD","MA",375000.0,2023.0,"2023-09-19","Strategic Prevention Framework-Partnerships for Success for Communities, Local Governments, Universities, Colleges, and Tribes/Tribal Organizations","2023/09/30 - 2028/09/29","SP-23-004","CSAP (SP)","New Start","SPF-PFS","Suffix present"]
["SP083684-01","RHODE ISLAND DEPT OF BEHAVIORAL HEALTHCARE/DEVELOPMENTAL DISABILITIES/HOSP","CRANSTON","RI",1250000.0,2023.0,"2023-09-19","FY 2023 Strategic Prevention Framework-Partnerships for Success for States","2023/09/30 - 2028/09/29","SP-23-003","CSAP (SP)","New Start","SPF-PFS","Suffix present"]
["SP083469-02","MRH CORP.","DOVER FOXCROFT","ME",50000.0,2023.0,"2023-09-05","STOP Act Grants","2022/09/30 - 2026/09/29","SP-22-006","CSAP (SP)","Continuation / Other","STOP Act","Suffix present"]
["SP083475-02","EAST HADDAM YOUTH AND FAMILY SERVICES","MOODUS","CT",50000.0,2023.0,"2023-09-05","STOP Act Grants","2022/09/30 - 2026/09/29","SP-22-006","CSAP (SP)","Continuation / Other","STOP Act","Suffix present"]
["SP083439-02","WINDHAM SOUTHWEST SUPERVISORY UNION","WILMINGTON","VT",50000.0,2023.0,"2023-09-05","STOP Act Grants","2022/09/30 - 2026/09/29","SP-22-006","CSAP (SP)","Continuation / Other","STOP Act","Suffix present"]
["SP083458-02","SOUTHEASTERN REGIONAL ACTION COUNCIL, INC.","NORWICH","CT",49724.0,2023.0,"2023-09-05","STOP Act Grants","2022/09/30 - 2026/09/29","SP-22-006","CSAP (SP)","Continuation / Other","STOP Act","Suffix present"]
["SP083435-02","CITY OF DOVER","DOVER","NH",50000.0,2023.0,"2023-09-05","STOP Act Grants","2022/09/30 - 2026/09/29","SP-22-006","CSAP (SP)","Continuation / Other","STOP Act","Suffix present"]
["SP083379-02","HAMPDEN-WILBRAHAM REGIONAL SCHOOL DIST","WILBRAHAM","MA",49928.0,2023.0,"2023-09-05","STOP Act Grants","2022/09/30 - 2026/09/29","SP-22-006","CSAP (SP)","Continuation / Other","STOP Act","Suffix present"]
["SP083346-02","MAINE STATE DEPT/HEALTH/HUMAN SERVS","AUGUSTA","ME",1250000.0,2023.0,"2023-09-05","Strategic Prevention Framework-Partnerships for Success","2022/09/30 - 2027/09/29","SP-22-004","CSAP (SP)","Continuation / Other","SPF-PFS","Suffix present"]
["SP083356-02","CITY OF DOVER","DOVER","NH",375000.0,2023.0,"2023-09-05","Strategic Prevention Framework-Partnerships for Success","2022/09/30 - 2027/09/29","SP-22-004","CSAP (SP)","Continuation / Other","SPF-PFS","Suffix present"]
["SP083332-02","CONNECTICUT ST DEPT OF MH/ADDICTION SRVS","HARTFORD","CT",1250000.0,2023.0,"2023-09-05","Strategic Prevention Framework-Partnerships for Success","2022/09/30 - 2027/09/29","SP-22-004","CSAP (SP)","Continuation / Other","SPF-PFS","Suffix present"]
["SP083251-02","VICTORY PROGRAMS, INC.","BOSTON","MA",248739.0,2023.0,"2023-09-05","Substance Abuse and HIV Prevention Navigator Program for Racial/Ethnic Minorities Cooperative Agreement","2022/09/30 - 2027/09/29","SP-22-002","CSAP (SP)","Continuation / Other","HIV Prevention","Suffix present"]
["SP083238-02","BROCKTON AREA MULTI-SERVICES, INC.","BROCKTON","MA",249205.0,2023.0,"2023-09-05","Substance Abuse and HIV Prevention Navigator Program for Racial/Ethnic Minorities Cooperative Agreement","2022/09/30 - 2027/09/29","SP-22-002","CSAP (SP)","Continuation / Other","HIV Prevention","Suffix present"]
["SP082772-02","MAINE STATE DEPT/HEALTH/HUMAN SERVS","AUGUSTA","ME",384000.0,2023.0,"2023-09-05","Strategic Prevention Framework for Prescription Drugs","2021/09/30 - 2026/09/29","SP-21-001","CSAP (SP)","Continuation / Other","SPF Prescription Drugs","Suffix present"]
["SP082768-03","CONNECTICUT ST DEPT OF MH/ADDICTION SRVS","HARTFORD","CT",384000.0,2023.0,"2023-09-05","Strategic Prevention Framework for Prescription Drugs","2021/09/30 - 2026/09/29","SP-21-001","CSAP (SP)","Continuation / Other","SPF Prescription Drugs","Suffix present"]
["SP082763-03","MASSACHUSETTS STATE DEPT OF PUB HEALTH","BOSTON","MA",384000.0,2023.0,"2023-09-05","Strategic Prevention Framework for Prescription Drugs","2021/09/30 - 2026/09/29","SP-21-001","CSAP (SP)","Continuation / Other","SPF Prescription Drugs","Suffix present"]
["SP082694-04","CITY OF FRANKLIN","FRANKLIN","NH",300000.0,2023.0,"2023-09-05","Strategic Prevention Framework – Partnerships for Success","2020/08/31 - 2025/08/30","SP-20-002","CSAP (SP)","Continuation / Other","SPF-PFS","Suffix present"]
["SP082568-04","COLLABORATIVE FOR EDUCATIONAL SERVICES","NORTHAMPTON","MA",300000.0,2023.0,"2023-09-05","Strategic Prevention Framework – Partnerships for Success","2020/08/31 - 2025/08/30","SP-20-002","CSAP (SP)","Continuation / Other","SPF-PFS","Suffix present"]
["SP082546-04","MOUNTAIN COMMUNITIES SUPPORTING EDUCATION, INC.","LONDONDERRY","VT",300000.0,2023.0,"2023-09-05","Strategic Prevention Framework – Partnerships for Success","2020/08/31 - 2025/08/30","SP-20-002","CSAP (SP)","Continuation / Other","SPF-PFS","Suffix present"]
["SP082550-04","TOWN OF WARE","WARE","MA",300000.0,2023.0,"2023-09-05","Strategic Prevention Framework – Partnerships for Success","2020/08/31 - 2025/08/30","SP-20-002","CSAP (SP)","Continuation / Other","SPF-PFS","Suffix present"]
["SP082504-04","VERMONT STATE AGENCY OF HUMAN SERVICES","WATERBURY","VT",1000000.0,2023.0,"2023-09-05","Strategic Prevention Framework – Partnerships for Success","2020/08/31 - 2025/08/30","SP-20-002","CSAP (SP)","Continuation / Other","SPF-PFS","Suffix present"]
["SP082479-04","BRIDGES HEALTHCARE, INC.","MILFORD","CT",300000.0,2023.0,"2023-09-05","Strategic Prevention Framework – Partnerships for Success","2020/08/31 - 2025/08/30","SP-20-002","CSAP (SP)","Continuation / Other","SPF-PFS","Suffix present"]
["SP082391-04","CITY OF PROVIDENCE","PROVIDENCE","RI",300000.0,2023.0,"2023-09-05","Strategic Prevention Framework – Partnerships for Success","2020/08/31 - 2025/08/30","SP-20-002","CSAP (SP)","Continuation / Other","SPF-PFS","Suffix present"]
["SP082290-04","MULTICULTURAL AIDS COALITION","Roxbury","MA",200000.0,2023.0,"2023-09-05","Capacity Building Initiative for Substance Abuse (SA) and HIV Prevention Services for At-Risk Racial/Ethnic Minority Youth and Young Adults","2020/08/31 - 2025/08/30","SP-20-001","CSAP (SP)","Continuation / Other","HIV Prevention","Suffix present"]
["SP082280-03","PERCEPTION PROGRAMS, INC.","WILLIMANTIC","CT",200000.0,2023.0,"2023-09-05","Capacity Building Initiative for Substance Abuse (SA) and HIV Prevention Services for At-Risk Racial/Ethnic Minority Youth and Young Adults","2021/08/31 - 2026/08/30","SP-20-001","CSAP (SP)","Continuation / Other","HIV Prevention","Suffix present"]
["SP082219-04","JUSTICE RESOURCE INSTITUTE","NEEDHAM","MA",196965.0,2023.0,"2023-09-05","Capacity Building Initiative for Substance Abuse (SA) and HIV Prevention Services for At-Risk Racial/Ethnic Minority Youth and Young Adults","2020/08/31 - 2025/08/30","SP-20-001","CSAP (SP)","Continuation / Other","HIV Prevention","Suffix present"]
["SP081724-05","WABANAKI HEALTH AND WELLNESS","BANGOR","ME",299946.0,2023.0,"2023-09-05","Strategic Prevention Framework – Partnerships for Success","2019/09/30 - 2024/09/29","SP-19-004","CSAP (SP)","Continuation / Other","SPF-PFS","Suffix present"]
["SP081695-05","HEALTHY ACADIA","ELLSWORTH","ME",300000.0,2023.0,"2023-09-05","Strategic Prevention Framework – Partnerships for Success","2019/09/30 - 2024/09/29","SP-19-004","CSAP (SP)","Continuation / Other","SPF-PFS","Suffix present"]
["SP081658-05","NFI VERMONT, INC.","SOUTH BURLINGTON","VT",300000.0,2023.0,"2023-09-05","Strategic Prevention Framework – Partnerships for Success","2019/09/30 - 2024/09/29","SP-19-004","CSAP (SP)","Continuation / Other","SPF-PFS","Suffix present"]
["SP081663-05","UNITED WAY OF ADDISON COUNTY","MIDDLEBURY","VT",287434.0,2023.0,"2023-09-05","Strategic Prevention Framework – Partnerships for Success","2019/09/30 - 2024/09/29","SP-19-004","CSAP (SP)","Continuation / Other","SPF-PFS","Suffix present"]
["SP081645-05","MASHANTUCKET PEQUOT TRIBAL NATION","MASHANTUCKET","CT",288052.0,2023.0,"2023-09-05","Strategic Prevention Framework – Partnerships for Success","2019/09/30 - 2024/09/29","SP-19-004","CSAP (SP)","Continuation / Other","SPF-PFS","Suffix present"]
["SP081650-05","COMMUNITIES FOR ALCOHOL AND DRUG FREE YOUTH, INC. (CADY)","PLYMOUTH","NH",299990.0,2023.0,"2023-09-05","Strategic Prevention Framework – Partnerships for Success","2019/09/30 - 2024/09/29","SP-19-004","CSAP (SP)","Continuation / Other","SPF-PFS","Suffix present"]
["SP081632-05","VILLAGE FOR FAMILIES AND CHILDREN, INC.","HARTFORD","CT",300000.0,2023.0,"2023-09-05","Strategic Prevention Framework – Partnerships for Success","2019/09/30 - 2024/09/29","SP-19-004","CSAP (SP)","Continuation / Other","SPF-PFS","Suffix present"]
["SP081537-05","CLINTON, TOWN OF","CLINTON","CT",286389.0,2023.0,"2023-09-05","Strategic Prevention Framework – Partnerships for Success","2019/09/30 - 2024/09/29","SP-19-004","CSAP (SP)","Continuation / Other","SPF-PFS","Suffix present"]
["SP081511-05","OPPORTUNITY ALLIANCE","PORTLAND","ME",300000.0,2023.0,"2023-09-05","Strategic Prevention Framework – Partnerships for Success","2019/09/30 - 2024/09/29","SP-19-004","CSAP (SP)","Continuation / Other","SPF-PFS","Suffix present"]
["SP081512-05","L U K CRISIS CENTER, INC.","FITCHBURG","MA",300000.0,2023.0,"2023-09-05","Strategic Prevention Framework – Partnerships for Success","2019/09/30 - 2024/09/29","SP-19-004","CSAP (SP)","Continuation / Other","SPF-PFS","Suffix present"]
["SP081298-05","HIGH POINT TREATMENT CENTER, INC.","NEW BEDFORD","MA",236129.0,2023.0,"2023-09-05","Strategic Prevention Framework – Partnerships for Success","2019/09/30 - 2024/09/29","SP-19-004","CSAP (SP)","Continuation / Other","SPF-PFS","Suffix present"]
["SP081318-05","SOUTHEASTERN REGIONAL ACTION COUNCIL, INC.","NORWICH","CT",297302.0,2023.0,"2023-09-05","Strategic Prevention Framework – Partnerships for Success","2019/09/30 - 2024/09/29","SP-19-004","CSAP (SP)","Continuation / Other","SPF-PFS","Suffix present"]
["SP081337-05","LYNNFIELD, TOWN OF (INC)","LYNNFIELD","MA",275000.0,2023.0,"2023-09-05","Strategic Prevention Framework – Partnerships for Success","2019/09/30 - 2024/09/29","SP-19-004","CSAP (SP)","Continuation / Other","SPF-PFS","Suffix present"]
["SP081272-05","CITY OF GLOUCESTER","GLOUCESTER","MA",256113.0,2023.0,"2023-09-05","Strategic Prevention Framework – Partnerships for Success","2019/09/30 - 2024/09/29","SP-19-004","CSAP (SP)","Continuation / Other","SPF-PFS","Suffix present"]
["SP082739-03","MAINE STATE DEPT/HEALTH/HUMAN SERVS","AUGUSTA","ME",850000.0,2023.0,"2023-07-31","Grants to Prevent Prescription Drug/Opioid Overdose-Related Deaths","2021/08/31 - 2026/08/30","SP-21-002","CSAP (SP)","Continuation / Other","Overdose Prevention","Suffix present"]
["SP082725-02","MASSACHUSETTS STATE DEPT OF PUB HEALTH","BOSTON","MA",850000.0,2023.0,"2023-07-31","Grants to Prevent Prescription Drug/Opioid Overdose-Related Deaths","2022/08/31 - 2027/08/30","SP-21-002","CSAP (SP)","Continuation / Other","Overdose Prevention","Suffix present"]
["SP082273-03","WHITTIER STREET HEALTH CENTER, INC.","ROXBURY","MA",200000.0,2023.0,"2023-07-31","Capacity Building Initiative for Substance Abuse (SA) and HIV Prevention Services for At-Risk Racial/Ethnic Minority Youth and Young Adults","2021/08/31 - 2026/08/30","SP-20-001","CSAP (SP)","Continuation / Other","HIV Prevention","Suffix present"]
["SP082229-03","WABANAKI HEALTH AND WELLNESS","BANGOR","ME",200000.0,2023.0,"2023-07-31","Capacity Building Initiative for Substance Abuse (SA) and HIV Prevention Services for At-Risk Racial/Ethnic Minority Youth and Young Adults","2021/08/31 - 2026/08/30","SP-20-001","CSAP (SP)","Continuation / Other","HIV Prevention","Suffix present"]
["SP083622-01","MAINEHEALTH","PORTLAND","ME",60000.0,2023.0,"2023-07-18","FY 2023 Sober Truth on Preventing Underage Drinking Act Grants","2023/09/30 - 2027/09/29","SP-23-002","CSAP (SP)","New Start","STOP Act","Suffix present"]
["SP083624-01","COASTLINE EAP (EMPLOYEE ASSISTANCE PROGRAM)","WARWICK","RI",60000.0,2023.0,"2023-07-18","FY 2023 Sober Truth on Preventing Underage Drinking Act Grants","2023/09/30 - 2027/09/29","SP-23-002","CSAP (SP)","New Start","STOP Act","Suffix present"]
["SP083615-01","OLD COLONY YMCA","BROCKTON","MA",60000.0,2023.0,"2023-07-18","FY 2023 Sober Truth on Preventing Underage Drinking Act Grants","2023/09/30 - 2027/09/29","SP-23-002","CSAP (SP)","New Start","STOP Act","Suffix present"]
["SP083570-01","MEDWAY PUBLIC SCHOOLS","MEDWAY","MA",51489.0,2023.0,"2023-07-18","FY 2023 Sober Truth on Preventing Underage Drinking Act Grants","2023/09/30 - 2027/09/29","SP-23-002","CSAP (SP)","New Start","STOP Act","Suffix present"]
["SP083525-01","TOWN OF STRATFORD","STRATFORD","CT",60000.0,2023.0,"2023-07-18","FY 2023 Sober Truth on Preventing Underage Drinking Act Grants","2023/09/30 - 2027/09/29","SP-23-002","CSAP (SP)","New Start","STOP Act","Suffix present"]
["SP083538-01","UNITED WAY OF ADDISON COUNTY","MIDDLEBURY","VT",60000.0,2023.0,"2023-07-18","FY 2023 Sober Truth on Preventing Underage Drinking Act Grants","2023/09/30 - 2027/09/30","SP-23-002","CSAP (SP)","New Start","STOP Act","Suffix present"]
["SP083499-01","YOUTH SERVICES, INC.","BRATTLEBORO","VT",56900.0,2023.0,"2023-07-18","FY 2023 Sober Truth on Preventing Underage Drinking Act Grants","2023/09/30 - 2027/09/29","SP-23-002","CSAP (SP)","New Start","STOP Act","Suffix present"]
["SP083502-01","MEDICAL CARE DEVELOPMENT, INC.","AUGUSTA","ME",60000.0,2023.0,"2023-07-18","FY 2023 Sober Truth on Preventing Underage Drinking Act Grants","2023/09/30 - 2027/09/29","SP-23-002","CSAP (SP)","New Start","STOP Act","Suffix present"]
["SP083488-01","COMMUNITY AGAINST SUBSTANCE ABUSE","WINTHROP","MA",60000.0,2023.0,"2023-07-18","FY 2023 Sober Truth on Preventing Underage Drinking Act Grants","2023/09/30 - 2027/09/29","SP-23-002","CSAP (SP)","New Start","STOP Act","Suffix present"]
["SP083489-01","SEBASTICOOK VALLEY HEALTH","PITTSFIELD","ME",60000.0,2023.0,"2023-07-18","FY 2023 Sober Truth on Preventing Underage Drinking Act Grants","2023/09/30 - 2027/09/29","SP-23-002","CSAP (SP)","New Start","STOP Act","Suffix present"]
["SP082989-02","VICTORY PROGRAMS, INC.","BOSTON","MA",361696.0,2023.0,"2023-05-10","Harm Reduction Grant Program","2022/05/30 - 2025/05/29","SP-22-001","CSAP (SP)","Continuation / Other","Harm Reduction","Suffix present"]
["SP082941-02","MAINEHEALTH","PORTLAND","ME",398960.0,2023.0,"2023-05-10","Harm Reduction Grant Program","2022/05/30 - 2025/05/29","SP-22-001","CSAP (SP)","Continuation / Other","Harm Reduction","Suffix present"]
["SP081227-04","DARTMOUTH-HITCHCOCK","LEBANON","NH",50000.0,2023.0,"2023-05-10","Sober Truth on Preventing Underage Drinking Act Grants","2020/04/30 - 2024/04/29","SP-19-003","CSAP (SP)","Continuation / Other","STOP Act","Suffix present"]
["SP081216-04","TOWN OF MADISON","MADISON","CT",50000.0,2023.0,"2023-05-10","Sober Truth on Preventing Underage Drinking Act Grants","2020/04/30 - 2024/04/29","SP-19-003","CSAP (SP)","Continuation / Other","STOP Act","Suffix present"]
["SP081219-04","HEALTHY COMMUNITY COALITION, INC.","FARMINGTON","ME",50000.0,2023.0,"2023-05-10","Sober Truth on Preventing Underage Drinking Act Grants","2020/04/30 - 2024/04/29","SP-19-003","CSAP (SP)","Continuation / Other","STOP Act","Suffix present"]
["SP081223-03","TOWN OF NEEDHAM","NEEDHAM","MA",50000.0,2023.0,"2023-05-10","Sober Truth on Preventing Underage Drinking Act Grants","2021/04/30 - 2025/04/29","SP-19-003","CSAP (SP)","Continuation / Other","STOP Act","Suffix present"]
["SP081194-04","BRIDGES HEALTHCARE, INC.","MILFORD","CT",50000.0,2023.0,"2023-05-10","Sober Truth on Preventing Underage Drinking Act Grants","2020/04/30 - 2024/04/29","SP-19-003","CSAP (SP)","Continuation / Other","STOP Act","Suffix present"]
["SP081120-04","WESTBROOK SCHOOL DEPARTMENT","WESTBROOK","ME",50000.0,2023.0,"2023-05-10","Sober Truth on Preventing Underage Drinking Act Grants","2020/04/30 - 2024/04/29","SP-19-003","CSAP (SP)","Continuation / Other","STOP Act","Suffix present"]
["SP081113-04","PLYMOUTH COUNTY DISTRICT ATTORNEY'S OFFICE","BROCKTON","MA",50000.0,2023.0,"2023-05-10","Sober Truth on Preventing Underage Drinking Act Grants","2020/04/30 - 2024/04/29","SP-19-003","CSAP (SP)","Continuation / Other","STOP Act","Suffix present"]
["SP081064-04","TOWN OF WARREN","WARREN","RI",50000.0,2023.0,"2023-05-10","Sober Truth on Preventing Underage Drinking Act Grants","2020/04/30 - 2024/04/29","SP-19-003","CSAP (SP)","Continuation / Other","STOP Act","Suffix present"]
["SP081066-04","FRANKLIN REGIONAL COUNCIL OF GOVERNMENTS","GREENFIELD","MA",50000.0,2023.0,"2023-05-10","Sober Truth on Preventing Underage Drinking Act Grants","2020/04/30 - 2024/04/29","SP-19-003","CSAP (SP)","Continuation / Other","STOP Act","Suffix present"]
["SP081067-04","ALLIANCE FOR SUBSTANCE ABUSE PREVENTION, INC.","Nantucket","MA",50000.0,2023.0,"2023-05-10","Sober Truth on Preventing Underage Drinking Act Grants","2020/04/30 - 2024/04/29","SP-19-003","CSAP (SP)","Continuation / Other","STOP Act","Suffix present"]
["SP081046-04","REALITY CHECK, INC.","JAFFREY","NH",50000.0,2023.0,"2023-05-10","Sober Truth on Preventing Underage Drinking Act Grants","2020/04/30 - 2024/04/29","SP-19-003","CSAP (SP)","Continuation / Other","STOP Act","Suffix present"]
["SP082724-01","CONNECTICUT ST DEPT OF MH/ADDICTION SRVS","HARTFORD","CT",850000.0,2023.0,"2023-05-01","Grants to Prevent Prescription Drug/Opioid Overdose-Related Deaths","2023/08/31 - 2028/08/30","SP-21-002","CSAP (SP)","New Start","Overdose Prevention","Suffix present"]
["SP080979-05","RHODE ISLAND DEPT OF BEHAVIORAL HEALTHCARE/DEVELOPMENTAL DISABILITIES/HOSP","CRANSTON","RI",2260000.0,2022.0,"2022-10-03","Strategic Prevention Framework – Partnerships for Success","2018/09/30 - 2023/09/29","SP-18-008","CSAP (SP)","Continuation / Other","SPF-PFS","Suffix present"]
["SP083458-01","SOUTHEASTERN REGIONAL ACTION COUNCIL, INC.","NORWICH","CT",49724.0,2022.0,"2022-09-23","STOP Act Grants","2022/09/30 - 2026/09/29","SP-22-006","CSAP (SP)","New Start","STOP Act","Suffix present"]
["SP083469-01","MRH CORP.","DOVER FOXCROFT","ME",50000.0,2022.0,"2022-09-23","STOP Act Grants","2022/09/30 - 2026/09/29","SP-22-006","CSAP (SP)","New Start","STOP Act","Suffix present"]
["SP083475-01","EAST HADDAM YOUTH AND FAMILY SERVICES","MOODUS","CT",50000.0,2022.0,"2022-09-23","STOP Act Grants","2022/09/30 - 2026/09/29","SP-22-006","CSAP (SP)","New Start","STOP Act","Suffix present"]
["SP083435-01","CITY OF DOVER","DOVER","NH",50000.0,2022.0,"2022-09-23","STOP Act Grants","2022/09/30 - 2026/09/29","SP-22-006","CSAP (SP)","New Start","STOP Act","Suffix present"]
["SP083439-01","WINDHAM SOUTHWEST SUPERVISORY UNION","WILMINGTON","VT",50000.0,2022.0,"2022-09-23","STOP Act Grants","2022/09/30 - 2026/09/29","SP-22-006","CSAP (SP)","New Start","STOP Act","Suffix present"]
["SP083379-01","HAMPDEN-WILBRAHAM REGIONAL SCHOOL DIST","WILBRAHAM","MA",49999.0,2022.0,"2022-09-23","STOP Act Grants","2022/09/30 - 2026/09/29","SP-22-006","CSAP (SP)","New Start","STOP Act","Suffix present"]
["SP083346-01","MAINE STATE DEPT/HEALTH/HUMAN SERVS","AUGUSTA","ME",1250000.0,2022.0,"2022-09-22","Strategic Prevention Framework-Partnerships for Success","2022/09/30 - 2027/09/29","SP-22-004","CSAP (SP)","New Start","SPF-PFS","Suffix present"]
["SP083356-01","CITY OF DOVER","DOVER","NH",375000.0,2022.0,"2022-09-22","Strategic Prevention Framework-Partnerships for Success","2022/09/30 - 2027/09/29","SP-22-004","CSAP (SP)","New Start","SPF-PFS","Suffix present"]
["SP083332-01","CONNECTICUT ST DEPT OF MH/ADDICTION SRVS","HARTFORD","CT",1250000.0,2022.0,"2022-09-22","Strategic Prevention Framework-Partnerships for Success","2022/09/30 - 2027/09/29","SP-22-004","CSAP (SP)","New Start","SPF-PFS","Suffix present"]
["SP082768-02","CONNECTICUT ST DEPT OF MH/ADDICTION SRVS","HARTFORD","CT",384000.0,2022.0,"2022-09-01","Strategic Prevention Framework for Prescription Drugs","2021/09/30 - 2026/09/29","SP-21-001","CSAP (SP)","Continuation / Other","SPF Prescription Drugs","Suffix present"]
["SP082763-02","MASSACHUSETTS STATE DEPT OF PUB HEALTH","BOSTON","MA",384000.0,2022.0,"2022-09-01","Strategic Prevention Framework for Prescription Drugs","2021/09/30 - 2026/09/29","SP-21-001","CSAP (SP)","Continuation / Other","SPF Prescription Drugs","Suffix present"]
["SP082694-03","CITY OF FRANKLIN","FRANKLIN","NH",300000.0,2022.0,"2022-09-01","Strategic Prevention Framework - Partnerships for Success","2020/08/31 - 2025/08/30","SP-20-002","CSAP (SP)","Continuation / Other","SPF-PFS","Suffix present"]
["SP082568-03","COLLABORATIVE FOR EDUCATIONAL SERVICES","NORTHAMPTON","MA",300000.0,2022.0,"2022-09-01","Strategic Prevention Framework - Partnerships for Success","2020/08/31 - 2025/08/30","SP-20-002","CSAP (SP)","Continuation / Other","SPF-PFS","Suffix present"]
["SP082504-03","VERMONT STATE AGENCY OF HUMAN SERVICES","WATERBURY","VT",1000000.0,2022.0,"2022-09-01","Strategic Prevention Framework - Partnerships for Success","2020/08/31 - 2025/08/30","SP-20-002","CSAP (SP)","Continuation / Other","SPF-PFS","Suffix present"]
["SP082546-03","MOUNTAIN COMMUNITIES SUPPORTING EDUCATION, INC.","LONDONDERRY","VT",300000.0,2022.0,"2022-09-01","Strategic Prevention Framework - Partnerships for Success","2020/08/31 - 2025/08/30","SP-20-002","CSAP (SP)","Continuation / Other","SPF-PFS","Suffix present"]
["SP082550-03","TOWN OF WARE","WARE","MA",300000.0,2022.0,"2022-09-01","Strategic Prevention Framework - Partnerships for Success","2020/08/31 - 2025/08/30","SP-20-002","CSAP (SP)","Continuation / Other","SPF-PFS","Suffix present"]
["SP082479-03","BRIDGES HEALTHCARE, INC.","MILFORD","CT",300000.0,2022.0,"2022-09-01","Strategic Prevention Framework - Partnerships for Success","2020/08/31 - 2025/08/30","SP-20-002","CSAP (SP)","Continuation / Other","SPF-PFS","Suffix present"]
["SP082391-03","CITY OF PROVIDENCE","PROVIDENCE","RI",300000.0,2022.0,"2022-09-01","Strategic Prevention Framework - Partnerships for Success","2020/08/31 - 2025/08/30","SP-20-002","CSAP (SP)","Continuation / Other","SPF-PFS","Suffix present"]
["SP082290-03","MULTICULTURAL AIDS COALITION","Roxbury","MA",200000.0,2022.0,"2022-09-01","Capacity Building Initiative for Substance Abuse (SA) and HIV Prevention Services for At-Risk Racial/Ethnic Minority Youth and Young Adults","2020/08/31 - 2025/08/30","SP-20-001","CSAP (SP)","Continuation / Other","HIV Prevention","Suffix present"]
["SP081724-04","WABANAKI HEALTH AND WELLNESS","BANGOR","ME",299946.0,2022.0,"2022-09-01","Strategic Prevention Framework - Partnerships for Success","2019/09/30 - 2024/09/29","SP-19-004","CSAP (SP)","Continuation / Other","SPF-PFS","Suffix present"]
["SP081663-04","UNITED WAY OF ADDISON COUNTY","MIDDLEBURY","VT",285615.0,2022.0,"2022-09-01","Strategic Prevention Framework - Partnerships for Success","2019/09/30 - 2024/09/29","SP-19-004","CSAP (SP)","Continuation / Other","SPF-PFS","Suffix present"]
["SP081695-04","HEALTHY ACADIA","Ellsworth","ME",300000.0,2022.0,"2022-09-01","Strategic Prevention Framework - Partnerships for Success","2019/09/30 - 2024/09/29","SP-19-004","CSAP (SP)","Continuation / Other","SPF-PFS","Suffix present"]
["SP081632-04","VILLAGE FOR FAMILIES AND CHILDREN, INC.","HARTFORD","CT",300000.0,2022.0,"2022-09-01","Strategic Prevention Framework - Partnerships for Success","2019/09/30 - 2024/09/29","SP-19-004","CSAP (SP)","Continuation / Other","SPF-PFS","Suffix present"]
["SP081645-04","MASHANTUCKET PEQUOT TRIBAL NATION","MASHANTUCKET","CT",288052.0,2022.0,"2022-09-01","Strategic Prevention Framework - Partnerships for Success","2019/09/30 - 2024/09/29","SP-19-004","CSAP (SP)","Continuation / Other","SPF-PFS","Suffix present"]
["SP081650-04","COMMUNITIES FOR ALCOHOL AND DRUG FREE YOUTH, INC. (CADY)","PLYMOUTH","NH",299990.0,2022.0,"2022-09-01","Strategic Prevention Framework - Partnerships for Success","2019/09/30 - 2024/09/29","SP-19-004","CSAP (SP)","Continuation / Other","SPF-PFS","Suffix present"]
["SP081658-04","NFI VERMONT, INC.","SOUTH BURLINGTON","VT",300000.0,2022.0,"2022-09-01","Strategic Prevention Framework - Partnerships for Success","2019/09/30 - 2024/09/29","SP-19-004","CSAP (SP)","Continuation / Other","SPF-PFS","Suffix present"]
["SP081537-04","CLINTON, TOWN OF","CLINTON","CT",286384.0,2022.0,"2022-09-01","Strategic Prevention Framework - Partnerships for Success","2019/09/30 - 2024/09/29","SP-19-004","CSAP (SP)","Continuation / Other","SPF-PFS","Suffix present"]
["SP081511-04","OPPORTUNITY ALLIANCE","PORTLAND","ME",300000.0,2022.0,"2022-09-01","Strategic Prevention Framework - Partnerships for Success","2019/09/30 - 2024/09/29","SP-19-004","CSAP (SP)","Continuation / Other","SPF-PFS","Suffix present"]
["SP081512-04","L U K CRISIS CENTER, INC.","FITCHBURG","MA",300000.0,2022.0,"2022-09-01","Strategic Prevention Framework - Partnerships for Success","2019/09/30 - 2024/09/29","SP-19-004","CSAP (SP)","Continuation / Other","SPF-PFS","Suffix present"]
["SP081298-04","HIGH POINT TREATMENT CENTER, INC.","NEW BEDFORD","MA",233021.0,2022.0,"2022-09-01","Strategic Prevention Framework - Partnerships for Success","2019/09/30 - 2024/09/29","SP-19-004","CSAP (SP)","Continuation / Other","SPF-PFS","Suffix present"]
["SP081318-04","SOUTHEASTERN REGIONAL ACTION COUNCIL, INC.","NORWICH","CT",297302.0,2022.0,"2022-09-01","Strategic Prevention Framework - Partnerships for Success","2019/09/30 - 2024/09/29","SP-19-004","CSAP (SP)","Continuation / Other","SPF-PFS","Suffix present"]
["SP081337-04","LYNNFIELD, TOWN OF (INC)","LYNNFIELD","MA",275000.0,2022.0,"2022-09-01","Strategic Prevention Framework - Partnerships for Success","2019/09/30 - 2024/09/29","SP-19-004","CSAP (SP)","Continuation / Other","SPF-PFS","Suffix present"]
["SP081272-04","CITY OF GLOUCESTER","GLOUCESTER","MA",254178.0,2022.0,"2022-09-01","Strategic Prevention Framework - Partnerships for Success","2019/09/30 - 2024/09/29","SP-19-004","CSAP (SP)","Continuation / Other","SPF-PFS","Suffix present"]
["SP081167-04","TOWN OF MIDDLETOWN","MIDDLETOWN","RI",48509.0,2022.0,"2022-09-01","Sober Truth on Preventing Underage Drinking Act Grants","2019/09/30 - 2023/09/29","SP-19-003","CSAP (SP)","Continuation / Other","STOP Act","Suffix present"]
["SP081173-04","COMMUNITIES FOR ALCOHOL AND DRUG FREE YOUTH, INC. (CADY)","PLYMOUTH","NH",48509.0,2022.0,"2022-09-01","Sober Truth on Preventing Underage Drinking Act Grants","2019/09/30 - 2023/09/29","SP-19-003","CSAP (SP)","Continuation / Other","STOP Act","Suffix present"]
["SP081116-04","GANDARA MENTAL HEALTH CENTER","WEST SPRINGFIELD","MA",48509.0,2022.0,"2022-09-01","Sober Truth on Preventing Underage Drinking Act Grants","2019/09/30 - 2023/09/29","SP-19-003","CSAP (SP)","Continuation / Other","STOP Act","Suffix present"]
["SP081126-04","TOWN OF WARE","WARE","MA",48509.0,2022.0,"2022-09-01","Sober Truth on Preventing Underage Drinking Act Grants","2019/09/30 - 2023/09/29","SP-19-003","CSAP (SP)","Continuation / Other","STOP Act","Suffix present"]
["SP081020-05","ADCARE EDUCATIONAL INSTITUTE OF MAINE, INC.","AUGUSTA","ME",600000.0,2022.0,"2022-09-01","Prevention Technology Transfer Centers Cooperative Agreements","2018/09/30 - 2023/09/29","SP-19-001","CSAP (SP)","Continuation / Other","PTTC","Suffix present"]
["SP021753-05","ACTION FOR BOSTON COMMUNITY DEVELOPMENT","BOSTON","MA",254654.0,2022.0,"2022-09-01","Capacity Building Initiative for Substance Abuse (SA) and HIV Prevention Services for At-Risk Racial/Ethnic Minority Youth and Young Adults","2018/09/30 - 2023/09/29","SP-16-004","CSAP (SP)","Continuation / Other","HIV Prevention","Suffix present"]
["SP021764-05","GBAPP, INC.","BRIDGEPORT","CT",257354.0,2022.0,"2022-09-01","Capacity Building Initiative for Substance Abuse (SA) and HIV Prevention Services for At-Risk Racial/Ethnic Minority Youth and Young Adults","2018/09/30 - 2023/09/29","SP-16-004","CSAP (SP)","Continuation / Other","HIV Prevention","Suffix present"]
["SP083251-01","VICTORY PROGRAMS, INC.","BOSTON","MA",243305.0,2022.0,"2022-08-31","Substance Abuse and HIV Prevention Navigator Program for Racial/Ethnic Minorities Cooperative Agreement","2022/09/30 - 2027/09/29","SP-22-002","CSAP (SP)","New Start","HIV Prevention","Suffix present"]
["SP083238-01","BROCKTON AREA MULTI-SERVICES, INC.","BROCKTON","MA",248184.0,2022.0,"2022-08-31","Substance Abuse and HIV Prevention Navigator Program for Racial/Ethnic Minorities Cooperative Agreement","2022/09/30 - 2027/09/29","SP-22-002","CSAP (SP)","New Start","HIV Prevention","Suffix present"]
["SP082739-02","MAINE STATE DEPT/HEALTH/HUMAN SERVS","AUGUSTA","ME",850000.0,2022.0,"2022-08-01","Grants to Prevent Prescription Drug/Opioid Overdose-Related Deaths","2021/08/31 - 2026/08/30","SP-21-002","CSAP (SP)","Continuation / Other","Overdose Prevention","Suffix present"]
["SP082280-02","PERCEPTION PROGRAMS, INC.","WILLIMANTIC","CT",200000.0,2022.0,"2022-08-01","Capacity Building Initiative for Substance Abuse (SA) and HIV Prevention Services for At-Risk Racial/Ethnic Minority Youth and Young Adults","2021/08/31 - 2026/08/30","SP-20-001","CSAP (SP)","Continuation / Other","HIV Prevention","Suffix present"]
["SP082273-02","WHITTIER STREET HEALTH CENTER, INC.","ROXBURY","MA",200000.0,2022.0,"2022-08-01","Capacity Building Initiative for Substance Abuse (SA) and HIV Prevention Services for At-Risk Racial/Ethnic Minority Youth and Young Adults","2021/08/31 - 2026/08/30","SP-20-001","CSAP (SP)","Continuation / Other","HIV Prevention","Suffix present"]
["SP082229-02","WABANAKI HEALTH AND WELLNESS","BANGOR","ME",200000.0,2022.0,"2022-08-01","Capacity Building Initiative for Substance Abuse (SA) and HIV Prevention Services for At-Risk Racial/Ethnic Minority Youth and Young Adults","2021/08/31 - 2026/08/30","SP-20-001","CSAP (SP)","Continuation / Other","HIV Prevention","Suffix present"]
["SP082219-03","JUSTICE RESOURCE INSTITUTE","NEEDHAM","MA",194015.0,2022.0,"2022-08-01","Capacity Building Initiative for Substance Abuse (SA) and HIV Prevention Services for At-Risk Racial/Ethnic Minority Youth and Young Adults","2020/08/31 - 2025/08/30","SP-20-001","CSAP (SP)","Continuation / Other","HIV Prevention","Suffix present"]
["SP081219-03","HEALTHY COMMUNITY COALITION, INC.","FARMINGTON","ME",50000.0,2022.0,"2022-08-01","Sober Truth on Preventing Underage Drinking Act Grants","2020/04/30 - 2024/04/29","SP-19-003","CSAP (SP)","Continuation / Other","STOP Act","Suffix present"]
["SP082725-01","MASSACHUSETTS STATE DEPT OF PUB HEALTH","BOSTON","MA",850000.0,2022.0,"2022-07-18","Grants to Prevent Prescription Drug/Opioid Overdose-Related Deaths","2022/08/31 - 2027/08/30","SP-21-002","CSAP (SP)","New Start","Overdose Prevention","Suffix present"]
["SP082941-01","MAINEHEALTH","PORTLAND","ME",398960.0,2022.0,"2022-05-19","Harm Reduction Grant Program","2022/05/30 - 2025/05/29","SP-22-001","CSAP (SP)","New Start","Harm Reduction","Suffix present"]
["SP082989-01","VICTORY PROGRAMS, INC.","BOSTON","MA",388890.0,2022.0,"2022-05-19","Harm Reduction Grant Program","2022/05/30 - 2025/05/29","SP-22-001","CSAP (SP)","New Start","Harm Reduction","Suffix present"]
["SP081216-03","TOWN OF MADISON","MADISON","CT",50000.0,2022.0,"2022-05-02","Sober Truth on Preventing Underage Drinking Act Grants","2020/04/30 - 2024/04/29","SP-19-003","CSAP (SP)","Continuation / Other","STOP Act","Suffix present"]
["SP081223-02","TOWN OF NEEDHAM","NEEDHAM","MA",50000.0,2022.0,"2022-05-02","Sober Truth on Preventing Underage Drinking Act Grants","2021/04/30 - 2025/04/29","SP-19-003","CSAP (SP)","Continuation / Other","STOP Act","Suffix present"]
["SP081227-03","DARTMOUTH-HITCHCOCK","LEBANON","NH",50000.0,2022.0,"2022-05-02","Sober Truth on Preventing Underage Drinking Act Grants","2020/04/30 - 2024/04/29","SP-19-003","CSAP (SP)","Continuation / Other","STOP Act","Suffix present"]
["SP081194-03","BRIDGES HEALTHCARE, INC.","MILFORD","CT",50000.0,2022.0,"2022-05-02","Sober Truth on Preventing Underage Drinking Act Grants","2020/04/30 - 2024/04/29","SP-19-003","CSAP (SP)","Continuation / Other","STOP Act","Suffix present"]
["SP081120-03","WESTBROOK SCHOOL DEPARTMENT","WESTBROOK","ME",50000.0,2022.0,"2022-05-02","Sober Truth on Preventing Underage Drinking Act Grants","2020/04/30 - 2024/04/29","SP-19-003","CSAP (SP)","Continuation / Other","STOP Act","Suffix present"]
["SP081113-03","PLYMOUTH COUNTY DISTRICT ATTORNEY'S OFFICE","BROCKTON","MA",50000.0,2022.0,"2022-05-02","Sober Truth on Preventing Underage Drinking Act Grants","2020/04/30 - 2024/04/29","SP-19-003","CSAP (SP)","Continuation / Other","STOP Act","Suffix present"]
["SP081067-03","ALLIANCE FOR SUBSTANCE ABUSE PREVENTION, INC.","Nantucket","MA",50000.0,2022.0,"2022-05-02","Sober Truth on Preventing Underage Drinking Act Grants","2020/04/30 - 2024/04/29","SP-19-003","CSAP (SP)","Continuation / Other","STOP Act","Suffix present"]
["SP081064-03","TOWN OF WARREN","WARREN","RI",50000.0,2022.0,"2022-05-02","Sober Truth on Preventing Underage Drinking Act Grants","2020/04/30 - 2024/04/29","SP-19-003","CSAP (SP)","Continuation / Other","STOP Act","Suffix present"]
["SP081066-03","FRANKLIN REGIONAL COUNCIL OF GOVERNMENTS","GREENFIELD","MA",50000.0,2022.0,"2022-05-02","Sober Truth on Preventing Underage Drinking Act Grants","2020/04/30 - 2024/04/29","SP-19-003","CSAP (SP)","Continuation / Other","STOP Act","Suffix present"]
["SP081046-03","REALITY CHECK, INC.","JAFFREY","NH",50000.0,2022.0,"2022-05-02","Sober Truth on Preventing Underage Drinking Act Grants","2020/04/30 - 2024/04/29","SP-19-003","CSAP (SP)","Continuation / Other","STOP Act","Suffix present"]

{"sheet":"Read Me","index":1,"n_rows":34,"n_cols":4,"rows_kept":34,"cut":false,"hidden":false,"merged":[[20,1,20,7],[21,1,21,7],[22,1,22,7],[23,1,23,7],[25,0,25,7],[26,0,29,7],[0,0,1,7],[2,0,2,7],[4,0,4,7],[5,0,8,7],[10,0,10,7],[18,0,18,7],[19,1,19,7]]}
["Region 1 Grant Award Trend Analysis"]
[]
["FY2022-FY2025 | Auditable companion resource for the Prevention Continuity Playbook"]
[]
["Purpose and scope"]
["This workbook calculates the financial statements on page 5 of the Prevention Continuity Playbook using the 258 award-action records supplied in grant-awards-2026-08-04.csv. It separates all records from CSAP/SP-prefix records, distinguishes new starts from continuation/other actions, and keeps the complete source data available for independent analysis."]
[]
[]
[]
[]
["Methodology"]
["Measure","Definition"]
["Total award dollars","Sum of Amount across award-action records for the fiscal year."]
["CSAP scope","Award Number begins with SP. Two FY2024 and two FY2025 TI-prefix records are shown separately as other-center records."]
["New start","Award Number ends in -01. All other values, including supplements and 11 FY2025 records with no year suffix, are classified as Continuation / Other."]
["STOP Act","Program title contains either 'Sober Truth' or 'STOP Act'."]
["Percent change","(Later period - Earlier period) / Earlier period."]
[]
["How to use the file"]
["1","Start on Summary for the strategic story."]
["2","Use Claim Check to see which playbook statements are supported, require scope correction, or should be replaced."]
["3","Use FY Analysis and STOP Analysis to inspect the formulas and show the math."]
["4","Use Program Mix to explore composition by program family."]
["5","Filter Raw Data to conduct your own analysis; formulas and classifications remain visible."]
[]
["Important interpretation note"]
["Award actions are not the same as appropriations, unique grant programs, or entirely new funding opportunities. Continuation awards can keep annual dollars elevated even when access to new awards contracts is decreased. National NOFO estimates and Region 1 award-action records are therefore reported as separate measures."]
[]
[]
[]
[]
["Workbook convention","Meaning","Color","Example"]
["Source input","Provided or externally sourced value","Blue text","National NOFO funding"]
["Formula / linked result","Calculated or linked cell","Black or green text","Annual total and percentage change"]

{"sheet":"Summary","index":2,"n_rows":26,"n_cols":7,"rows_kept":26,"cut":false,"hidden":false,"merged":[[0,0,1,9],[2,0,2,9],[4,0,4,2],[4,3,4,5],[4,6,4,9],[5,0,6,2],[5,3,6,5],[21,1,21,9],[24,0,24,9],[25,0,28,9],[5,6,6,9],[15,0,15,9],[16,1,16,9],[17,1,17,9],[18,1,18,9],[19,1,19,9],[20,1,20,9]]}
["Region 1 Grant Award Trends"]
[]
["The defensible story: annual dollars peaked in FY2023, new starts contracted in FY2025, and continuation funding masked the STOP opportunity decline."]
[]
["FY2022 - All award dollars",null,null,"FY2025 - All award dollars",null,null,"FY2022 to FY2025 change"]
[{"$f":"'FY Analysis'!C6","v":18851609},null,null,{"$f":"'FY Analysis'!C9","v":16800358},null,null,{"$f":"'FY Analysis'!E15","v":-0.1088103939}]
[]
[]
["Fiscal Year","All Award Dollars","YoY","CSAP Award Dollars","YoY","All Actions"]
[2022.0,{"$f":"'FY Analysis'!C6","v":18851609},{"$f":"'FY Analysis'!D6","v":""},{"$f":"'FY Analysis'!F6","v":18851609},{"$f":"'FY Analysis'!G6","v":""},{"$f":"'FY Analysis'!B6","v":62}]
[2023.0,{"$f":"'FY Analysis'!C7","v":19471250},{"$f":"'FY Analysis'!D7","v":0.03286939592},{"$f":"'FY Analysis'!F7","v":19471250},{"$f":"'FY Analysis'!G7","v":0.03286939592},{"$f":"'FY Analysis'!B7","v":70}]
[2024.0,{"$f":"'FY Analysis'!C8","v":17431993},{"$f":"'FY Analysis'!D8","v":-0.1047316942},{"$f":"'FY Analysis'!F8","v":16079840},{"$f":"'FY Analysis'!G8","v":-0.1741752584},{"$f":"'FY Analysis'!B8","v":64}]
[2025.0,{"$f":"'FY Analysis'!C9","v":16800358},{"$f":"'FY Analysis'!D9","v":-0.03623423897},{"$f":"'FY Analysis'!F9","v":15427780},{"$f":"'FY Analysis'!G9","v":-0.04055139852},{"$f":"'FY Analysis'!B9","v":62}]
[]
[]
["What the numbers support"]
["1","Total dollars did not surge. All-record dollars moved from $18.85M in FY2022 to $16.80M in FY2025 (-10.9%); CSAP/SP-prefix dollars fell 18.2%."]
["2","CSAP-only new starts fell 33.3% (18 to 12)."]
["3","Fewer new starts did not mean fewer new-start dollars. Across all records, new-start dollars increased 2.3% from FY2024 to FY2025 because the FY2025 mix included larger awards."]
["4","STOP is the strongest example of hidden contraction. Region 1 new STOP starts fell 64.3%, while total STOP dollars rose 3.7% because continuations remained active."]
["5","National STOP opportunity funding fell 83.6% (84% rounded); expected awards fell 82.9% (83% rounded)."]
["6","Continuation/other awards supplied 72%-80% of annual dollars, confirming that topline totals are heavily shaped by prior cohorts."]
[]
[]
["Recommended headline for the public resource"]
["Region 1 award dollars remained substantial but contracted after FY2023, while access to new awards narrowed in FY2025. Continuation funding kept topline totals elevated, especially for STOP, masking a much steeper decline in new opportunities."]

{"sheet":"FY Analysis","index":3,"n_rows":19,"n_cols":13,"rows_kept":19,"cut":false,"hidden":false,"merged":[[0,0,1,12],[2,0,2,12],[11,0,11,5]]}
["Fiscal-Year Analysis"]
[]
["Every output below is formula-driven from the Raw Data tab."]
[]
["Fiscal Year","All Actions","All Award Dollars","YoY - All Dollars","CSAP Actions","CSAP Award Dollars","YoY - CSAP Dollars","New Starts - All","New-Start $ - All","New Starts - CSAP","New-Start $ - CSAP","Continuation/Other $ - All","Continuation Share"]
[2022.0,{"$f":"COUNTIFS('Raw Data'!$F$2:$F$259,A6)","v":62},{"$f":"SUMIFS('Raw Data'!$E$2:$E$259,'Raw Data'!$F$2:$F$259,A6)","v":18851609},null,{"$f":"COUNTIFS('Raw Data'!$F$2:$F$259,A6,'Raw Data'!$K$2:$K$259,\"CSAP (SP)\")","v":62},{"$f":"SUMIFS('Raw Data'!$E$2:$E$259,'Raw Data'!$F$2:$F$259,A6,'Raw Data'!$K$2:$K$259,\"CSAP (SP)\")","v":18851609},null,{"$f":"COUNTIFS('Raw Data'!$F$2:$F$259,A6,'Raw Data'!$L$2:$L$259,\"New Start\")","v":14},{"$f":"SUMIFS('Raw Data'!$E$2:$E$259,'Raw Data'!$F$2:$F$259,A6,'Raw Data'!$L$2:$L$259,\"New Start\")","v":5304062},{"$f":"COUNTIFS('Raw Data'!$F$2:$F$259,A6,'Raw Data'!$K$2:$K$259,\"CSAP (SP)\",'Raw Data'!$L$2:$L$259,\"New Start\")","v":14},{"$f":"SUMIFS('Raw Data'!$E$2:$E$259,'Raw Data'!$F$2:$F$259,A6,'Raw Data'!$K$2:$K$259,\"CSAP (SP)\",'Raw Data'!$L$2:$L$259,\"New Start\")","v":5304062},{"$f":"SUMIFS('Raw Data'!$E$2:$E$259,'Raw Data'!$F$2:$F$259,A6,'Raw Data'!$L$2:$L$259,\"Continuation / Other\")","v":13547547},{"$f":"IFERROR(L6/C6,\"\")","v":0.7186414168}]
[2023.0,{"$f":"COUNTIFS('Raw Data'!$F$2:$F$259,A7)","v":70},{"$f":"SUMIFS('Raw Data'!$E$2:$E$259,'Raw Data'!$F$2:$F$259,A7)","v":19471250},{"$f":"IFERROR(C7/C6-1,\"\")","v":0.03286939592},{"$f":"COUNTIFS('Raw Data'!$F$2:$F$259,A7,'Raw Data'!$K$2:$K$259,\"CSAP (SP)\")","v":70},{"$f":"SUMIFS('Raw Data'!$E$2:$E$259,'Raw Data'!$F$2:$F$259,A7,'Raw Data'!$K$2:$K$259,\"CSAP (SP)\")","v":19471250},{"$f":"IFERROR(F7/F6-1,\"\")","v":0.03286939592},{"$f":"COUNTIFS('Raw Data'!$F$2:$F$259,A7,'Raw Data'!$L$2:$L$259,\"New Start\")","v":15},{"$f":"SUMIFS('Raw Data'!$E$2:$E$259,'Raw Data'!$F$2:$F$259,A7,'Raw Data'!$L$2:$L$259,\"New Start\")","v":3812678},{"$f":"COUNTIFS('Raw Data'!$F$2:$F$259,A7,'Raw Data'!$K$2:$K$259,\"CSAP (SP)\",'Raw Data'!$L$2:$L$259,\"New Start\")","v":15},{"$f":"SUMIFS('Raw Data'!$E$2:$E$259,'Raw Data'!$F$2:$F$259,A7,'Raw Data'!$K$2:$K$259,\"CSAP (SP)\",'Raw Data'!$L$2:$L$259,\"New Start\")","v":3812678},{"$f":"SUMIFS('Raw Data'!$E$2:$E$259,'Raw Data'!$F$2:$F$259,A7,'Raw Data'!$L$2:$L$259,\"Continuation / Other\")","v":15658572},0.8041893561]
[2024.0,{"$f":"COUNTIFS('Raw Data'!$F$2:$F$259,A8)","v":64},{"$f":"SUMIFS('Raw Data'!$E$2:$E$259,'Raw Data'!$F$2:$F$259,A8)","v":17431993},-0.1047316942,{"$f":"COUNTIFS('Raw Data'!$F$2:$F$259,A8,'Raw Data'!$K$2:$K$259,\"CSAP (SP)\")","v":62},{"$f":"SUMIFS('Raw Data'!$E$2:$E$259,'Raw Data'!$F$2:$F$259,A8,'Raw Data'!$K$2:$K$259,\"CSAP (SP)\")","v":16079840},-0.1741752584,{"$f":"COUNTIFS('Raw Data'!$F$2:$F$259,A8,'Raw Data'!$L$2:$L$259,\"New Start\")","v":20},{"$f":"SUMIFS('Raw Data'!$E$2:$E$259,'Raw Data'!$F$2:$F$259,A8,'Raw Data'!$L$2:$L$259,\"New Start\")","v":4056456},{"$f":"COUNTIFS('Raw Data'!$F$2:$F$259,A8,'Raw Data'!$K$2:$K$259,\"CSAP (SP)\",'Raw Data'!$L$2:$L$259,\"New Start\")","v":18},{"$f":"SUMIFS('Raw Data'!$E$2:$E$259,'Raw Data'!$F$2:$F$259,A8,'Raw Data'!$K$2:$K$259,\"CSAP (SP)\",'Raw Data'!$L$2:$L$259,\"New Start\")","v":2704303},{"$f":"SUMIFS('Raw Data'!$E$2:$E$259,'Raw Data'!$F$2:$F$259,A8,'Raw Data'!$L$2:$L$259,\"Continuation / Other\")","v":13375537},0.7672982085]
[2025.0,{"$f":"COUNTIFS('Raw Data'!$F$2:$F$259,A9)","v":62},{"$f":"SUMIFS('Raw Data'!$E$2:$E$259,'Raw Data'!$F$2:$F$259,A9)","v":16800358},-0.03623423897,{"$f":"COUNTIFS('Raw Data'!$F$2:$F$259,A9,'Raw Data'!$K$2:$K$259,\"CSAP (SP)\")","v":60},{"$f":"SUMIFS('Raw Data'!$E$2:$E$259,'Raw Data'!$F$2:$F$259,A9,'Raw Data'!$K$2:$K$259,\"CSAP (SP)\")","v":15427780},-0.04055139852,{"$f":"COUNTIFS('Raw Data'!$F$2:$F$259,A9,'Raw Data'!$L$2:$L$259,\"New Start\")","v":12},{"$f":"SUMIFS('Raw Data'!$E$2:$E$259,'Raw Data'!$F$2:$F$259,A9,'Raw Data'!$L$2:$L$259,\"New Start\")","v":4150000},{"$f":"COUNTIFS('Raw Data'!$F$2:$F$259,A9,'Raw Data'!$K$2:$K$259,\"CSAP (SP)\",'Raw Data'!$L$2:$L$259,\"New Start\")","v":12},{"$f":"SUMIFS('Raw Data'!$E$2:$E$259,'Raw Data'!$F$2:$F$259,A9,'Raw Data'!$K$2:$K$259,\"CSAP (SP)\",'Raw Data'!$L$2:$L$259,\"New Start\")","v":4150000},{"$f":"SUMIFS('Raw Data'!$E$2:$E$259,'Raw Data'!$F$2:$F$259,A9,'Raw Data'!$L$2:$L$259,\"Continuation / Other\")","v":12650358},0.7529814543]
[]
[]
["Selected changes - explicit math"]
["Measure","Earlier Value","Later Value","Change","% Change","Formula"]
["All award dollars, FY2024 to FY2025",{"$f":"C8","v":17431993},{"$f":"C9","v":16800358},{"$f":"C14-B14","v":-631635},{"$f":"IFERROR(D14/B14,\"\")","v":-0.03623423897},"(FY25 - FY24) / FY24"]
["All award dollars, FY2022 to FY2025",{"$f":"C6","v":18851609},{"$f":"C9","v":16800358},-2051251,-0.1088103939,"(FY25 - FY22) / FY22"]
["CSAP award dollars, FY2022 to FY2025",{"$f":"F6","v":18851609},{"$f":"F9","v":15427780},-3423829,-0.181619988,"(FY25 - FY22) / FY22"]
["New starts - all records, FY2024 to FY2025",{"$f":"H8","v":20},{"$f":"H9","v":12},-8,-0.4,"(12 - 20) / 20"]
["New starts - CSAP only, FY2024 to FY2025",{"$f":"J8","v":18},{"$f":"J9","v":12},-6,-0.3333333333,"(12 - 18) / 18"]
["New-start dollars - all records, FY2024 to FY2025",{"$f":"I8","v":4056456},{"$f":"I9","v":4150000},93544,0.02306052377,"(FY25 - FY24) / FY24"]

{"sheet":"STOP Analysis","index":4,"n_rows":20,"n_cols":8,"rows_kept":20,"cut":false,"hidden":false,"merged":[[0,0,1,7],[2,0,2,7],[4,0,4,7],[12,0,12,7],[18,0,18,7],[19,0,23,7]]}
["STOP Act Analysis"]
[]
["Regional award-action trends and national opportunity estimates are deliberately separated."]
[]
["Region 1 award-action records"]
["Fiscal Year","Total STOP Actions","Total STOP Dollars","New STOP Starts","New-Start Dollars","YoY - Total $","YoY - New Starts","YoY - New-Start $"]
[2022.0,{"$f":"COUNTIFS('Raw Data'!$F$2:$F$259,A7,'Raw Data'!$M$2:$M$259,\"STOP Act\")","v":21},{"$f":"SUMIFS('Raw Data'!$E$2:$E$259,'Raw Data'!$F$2:$F$259,A7,'Raw Data'!$M$2:$M$259,\"STOP Act\")","v":1043759},{"$f":"COUNTIFS('Raw Data'!$F$2:$F$259,A7,'Raw Data'!$M$2:$M$259,\"STOP Act\",'Raw Data'!$L$2:$L$259,\"New Start\")","v":6},{"$f":"SUMIFS('Raw Data'!$E$2:$E$259,'Raw Data'!$F$2:$F$259,A7,'Raw Data'!$M$2:$M$259,\"STOP Act\",'Raw Data'!$L$2:$L$259,\"New Start\")","v":299723}]
[2023.0,{"$f":"COUNTIFS('Raw Data'!$F$2:$F$259,A8,'Raw Data'!$M$2:$M$259,\"STOP Act\")","v":27},{"$f":"SUMIFS('Raw Data'!$E$2:$E$259,'Raw Data'!$F$2:$F$259,A8,'Raw Data'!$M$2:$M$259,\"STOP Act\")","v":1438041},{"$f":"COUNTIFS('Raw Data'!$F$2:$F$259,A8,'Raw Data'!$M$2:$M$259,\"STOP Act\",'Raw Data'!$L$2:$L$259,\"New Start\")","v":10},{"$f":"SUMIFS('Raw Data'!$E$2:$E$259,'Raw Data'!$F$2:$F$259,A8,'Raw Data'!$M$2:$M$259,\"STOP Act\",'Raw Data'!$L$2:$L$259,\"New Start\")","v":588389},{"$f":"IFERROR(C8/C7-1,\"\")","v":0.3777519523},0.6666666667,0.9631092709]
[2024.0,{"$f":"COUNTIFS('Raw Data'!$F$2:$F$259,A9,'Raw Data'!$M$2:$M$259,\"STOP Act\")","v":31},{"$f":"SUMIFS('Raw Data'!$E$2:$E$259,'Raw Data'!$F$2:$F$259,A9,'Raw Data'!$M$2:$M$259,\"STOP Act\")","v":1779620},{"$f":"COUNTIFS('Raw Data'!$F$2:$F$259,A9,'Raw Data'!$M$2:$M$259,\"STOP Act\",'Raw Data'!$L$2:$L$259,\"New Start\")","v":14},{"$f":"SUMIFS('Raw Data'!$E$2:$E$259,'Raw Data'!$F$2:$F$259,A9,'Raw Data'!$M$2:$M$259,\"STOP Act\",'Raw Data'!$L$2:$L$259,\"New Start\")","v":840000},{"$f":"IFERROR(C9/C8-1,\"\")","v":0.2375307797},0.4,0.4276269611]
[2025.0,{"$f":"COUNTIFS('Raw Data'!$F$2:$F$259,A10,'Raw Data'!$M$2:$M$259,\"STOP Act\")","v":32},{"$f":"SUMIFS('Raw Data'!$E$2:$E$259,'Raw Data'!$F$2:$F$259,A10,'Raw Data'!$M$2:$M$259,\"STOP Act\")","v":1844604},{"$f":"COUNTIFS('Raw Data'!$F$2:$F$259,A10,'Raw Data'!$M$2:$M$259,\"STOP Act\",'Raw Data'!$L$2:$L$259,\"New Start\")","v":5},{"$f":"SUMIFS('Raw Data'!$E$2:$E$259,'Raw Data'!$F$2:$F$259,A10,'Raw Data'!$M$2:$M$259,\"STOP Act\",'Raw Data'!$L$2:$L$259,\"New Start\")","v":300000},{"$f":"IFERROR(C10/C9-1,\"\")","v":0.03651566065},-0.6428571429,-0.6428571429]
[]
[]
["National STOP funding opportunity estimates"]
["Fiscal Year","Estimated Program Funding","Expected Awards","Funding Change","Funding % Change","Award Change","Award % Change","Interpretation"]
[2024.0,4566000.0,76.0,null,null,null,null,"FY2024 baseline (SP-24-001)"]
[2025.0,750000.0,13.0,{"$f":"B16-B15","v":-3816000},{"$f":"IFERROR(D16/B15,\"\")","v":-0.8357424442},{"$f":"C16-C15","v":-63},{"$f":"IFERROR(F16/C15,\"\")","v":-0.8289473684},"FY2025 comparison (SP-25-001)"]
[]
[]
["What the STOP math means"]
["Nationally, estimated opportunity funding fell by 83.6% (84% when rounded to a whole percent), while expected awards fell by 82.9% (83% rounded). In Region 1, new STOP starts and their dollars each fell by 64.3% from FY2024 to FY2025. Yet total regional STOP award dollars rose 3.7% because continuation awards remained in the annual total. That contrast is the clearest evidence that topline funding can mask reduced access to new opportunities."]

{"sheet":"Program Mix","index":5,"n_rows":15,"n_cols":6,"rows_kept":15,"cut":false,"hidden":false,"merged":[[0,0,1,5],[2,0,2,5]]}
["Program Mix by Fiscal Year"]
[]
["Award dollars by standardized program family; totals reconcile to the complete raw dataset."]
[]
["Program Family","FY2022","FY2023","FY2024","FY2025","Four-Year Total"]
["SPF-PFS",{"$f":"SUMIFS('Raw Data'!$E$2:$E$259,'Raw Data'!$M$2:$M$259,$A6,'Raw Data'!$F$2:$F$259,2022)","v":11954488},{"$f":"SUMIFS('Raw Data'!$E$2:$E$259,'Raw Data'!$M$2:$M$259,$A6,'Raw Data'!$F$2:$F$259,2023)","v":12075644},{"$f":"SUMIFS('Raw Data'!$E$2:$E$259,'Raw Data'!$M$2:$M$259,$A6,'Raw Data'!$F$2:$F$259,2024)","v":8826879},{"$f":"SUMIFS('Raw Data'!$E$2:$E$259,'Raw Data'!$M$2:$M$259,$A6,'Raw Data'!$F$2:$F$259,2025)","v":8546583},{"$f":"SUM(B6:E6)","v":41403594}]
["STOP Act",{"$f":"SUMIFS('Raw Data'!$E$2:$E$259,'Raw Data'!$M$2:$M$259,$A7,'Raw Data'!$F$2:$F$259,2022)","v":1043759},{"$f":"SUMIFS('Raw Data'!$E$2:$E$259,'Raw Data'!$M$2:$M$259,$A7,'Raw Data'!$F$2:$F$259,2023)","v":1438041},{"$f":"SUMIFS('Raw Data'!$E$2:$E$259,'Raw Data'!$M$2:$M$259,$A7,'Raw Data'!$F$2:$F$259,2024)","v":1779620},{"$f":"SUMIFS('Raw Data'!$E$2:$E$259,'Raw Data'!$M$2:$M$259,$A7,'Raw Data'!$F$2:$F$259,2025)","v":1844604},6106024]
["Overdose Prevention",{"$f":"SUMIFS('Raw Data'!$E$2:$E$259,'Raw Data'!$M$2:$M$259,$A8,'Raw Data'!$F$2:$F$259,2022)","v":1700000},{"$f":"SUMIFS('Raw Data'!$E$2:$E$259,'Raw Data'!$M$2:$M$259,$A8,'Raw Data'!$F$2:$F$259,2023)","v":2550000},{"$f":"SUMIFS('Raw Data'!$E$2:$E$259,'Raw Data'!$M$2:$M$259,$A8,'Raw Data'!$F$2:$F$259,2024)","v":2550000},{"$f":"SUMIFS('Raw Data'!$E$2:$E$259,'Raw Data'!$M$2:$M$259,$A8,'Raw Data'!$F$2:$F$259,2025)","v":2020000},8820000]
["SPF Prescription Drugs",{"$f":"SUMIFS('Raw Data'!$E$2:$E$259,'Raw Data'!$M$2:$M$259,$A9,'Raw Data'!$F$2:$F$259,2022)","v":768000},{"$f":"SUMIFS('Raw Data'!$E$2:$E$259,'Raw Data'!$M$2:$M$259,$A9,'Raw Data'!$F$2:$F$259,2023)","v":1152000},{"$f":"SUMIFS('Raw Data'!$E$2:$E$259,'Raw Data'!$M$2:$M$259,$A9,'Raw Data'!$F$2:$F$259,2024)","v":860836},{"$f":"SUMIFS('Raw Data'!$E$2:$E$259,'Raw Data'!$M$2:$M$259,$A9,'Raw Data'!$F$2:$F$259,2025)","v":1152000},3932836]
["HIV Prevention",{"$f":"SUMIFS('Raw Data'!$E$2:$E$259,'Raw Data'!$M$2:$M$259,$A10,'Raw Data'!$F$2:$F$259,2022)","v":1997512},{"$f":"SUMIFS('Raw Data'!$E$2:$E$259,'Raw Data'!$M$2:$M$259,$A10,'Raw Data'!$F$2:$F$259,2023)","v":1494909},{"$f":"SUMIFS('Raw Data'!$E$2:$E$259,'Raw Data'!$M$2:$M$259,$A10,'Raw Data'!$F$2:$F$259,2024)","v":1323124},{"$f":"SUMIFS('Raw Data'!$E$2:$E$259,'Raw Data'!$M$2:$M$259,$A10,'Raw Data'!$F$2:$F$259,2025)","v":897944},5713489]
["First Responders-CARA",{"$f":"SUMIFS('Raw Data'!$E$2:$E$259,'Raw Data'!$M$2:$M$259,$A11,'Raw Data'!$F$2:$F$259,2022)","v":0},{"$f":"SUMIFS('Raw Data'!$E$2:$E$259,'Raw Data'!$M$2:$M$259,$A11,'Raw Data'!$F$2:$F$259,2023)","v":0},{"$f":"SUMIFS('Raw Data'!$E$2:$E$259,'Raw Data'!$M$2:$M$259,$A11,'Raw Data'!$F$2:$F$259,2024)","v":1352153},{"$f":"SUMIFS('Raw Data'!$E$2:$E$259,'Raw Data'!$M$2:$M$259,$A11,'Raw Data'!$F$2:$F$259,2025)","v":1372578},2724731]
["PTTC",{"$f":"SUMIFS('Raw Data'!$E$2:$E$259,'Raw Data'!$M$2:$M$259,$A12,'Raw Data'!$F$2:$F$259,2022)","v":600000},{"$f":"SUMIFS('Raw Data'!$E$2:$E$259,'Raw Data'!$M$2:$M$259,$A12,'Raw Data'!$F$2:$F$259,2023)","v":0},{"$f":"SUMIFS('Raw Data'!$E$2:$E$259,'Raw Data'!$M$2:$M$259,$A12,'Raw Data'!$F$2:$F$259,2024)","v":739381},{"$f":"SUMIFS('Raw Data'!$E$2:$E$259,'Raw Data'!$M$2:$M$259,$A12,'Raw Data'!$F$2:$F$259,2025)","v":966649},2306030]
["Harm Reduction",{"$f":"SUMIFS('Raw Data'!$E$2:$E$259,'Raw Data'!$M$2:$M$259,$A13,'Raw Data'!$F$2:$F$259,2022)","v":787850},{"$f":"SUMIFS('Raw Data'!$E$2:$E$259,'Raw Data'!$M$2:$M$259,$A13,'Raw Data'!$F$2:$F$259,2023)","v":760656},{"$f":"SUMIFS('Raw Data'!$E$2:$E$259,'Raw Data'!$M$2:$M$259,$A13,'Raw Data'!$F$2:$F$259,2024)","v":0},{"$f":"SUMIFS('Raw Data'!$E$2:$E$259,'Raw Data'!$M$2:$M$259,$A13,'Raw Data'!$F$2:$F$259,2025)","v":0},1548506]
["Other",{"$f":"SUMIFS('Raw Data'!$E$2:$E$259,'Raw Data'!$M$2:$M$259,$A14,'Raw Data'!$F$2:$F$259,2022)","v":0},{"$f":"SUMIFS('Raw Data'!$E$2:$E$259,'Raw Data'!$M$2:$M$259,$A14,'Raw Data'!$F$2:$F$259,2023)","v":0},{"$f":"SUMIFS('Raw Data'!$E$2:$E$259,'Raw Data'!$M$2:$M$259,$A14,'Raw Data'!$F$2:$F$259,2024)","v":0},{"$f":"SUMIFS('Raw Data'!$E$2:$E$259,'Raw Data'!$M$2:$M$259,$A14,'Raw Data'!$F$2:$F$259,2025)","v":0},0]
["TOTAL",{"$f":"SUM(B6:B14)","v":18851609},19471250,17431993,16800358,72555210]

{"sheet":"Checks","index":6,"n_rows":14,"n_cols":6,"rows_kept":14,"cut":false,"hidden":false,"merged":[[0,0,1,5],[2,0,2,5]]}
["Workbook Checks"]
[]
["PASS means the source rows, annual rollups, and analysis scopes reconcile."]
[]
["Check","Actual","Expected","Difference","Status","Where to fix / Notes"]
["Raw data row count",{"$f":"COUNTA('Raw Data'!$A$2:$A$259)","v":258},258.0,{"$f":"B6-C6","v":0},{"$f":"IF(ABS(D6)<0.01,\"OK\",\"REVIEW\")","v":"OK"},"Raw Data"]
["FY action counts sum to raw rows",{"$f":"SUM('FY Analysis'!$B$6:$B$9)","v":258},{"$f":"B6","v":258},0,"OK","FY Analysis B6:B9"]
["Annual award dollars tie to raw-data total",{"$f":"SUM('FY Analysis'!$C$6:$C$9)","v":72555210},{"$f":"SUM('Raw Data'!$E$2:$E$259)","v":72555210},0,"OK","FY Analysis C6:C9"]
["CSAP + other-center actions tie to raw rows",{"$f":"COUNTIF('Raw Data'!$K$2:$K$259,\"CSAP (SP)\")+COUNTIF('Raw Data'!$K$2:$K$259,\"Other center (TI)\")","v":258},{"$f":"B6","v":258},0,"OK","Raw Data Center Scope"]
["New + continuation/other actions tie to raw rows",{"$f":"COUNTIF('Raw Data'!$L$2:$L$259,\"New Start\")+COUNTIF('Raw Data'!$L$2:$L$259,\"Continuation / Other\")","v":258},{"$f":"B6","v":258},0,"OK","Raw Data Action Type"]
[]
["MODEL STATUS",{"$f":"IF(COUNTIF(E6:E10,\"REVIEW\")=0,\"PASS\",\"FAIL\")","v":"PASS"}]
["Required checks",5.0]
["Failed checks",{"$f":"COUNTIF(E6:E10,\"REVIEW\")","v":0}]

{"sheet":"Sources & Notes","index":7,"n_rows":15,"n_cols":6,"rows_kept":15,"cut":false,"hidden":false,"merged":[[0,0,1,5],[2,0,2,5],[13,0,13,5],[14,0,19,5]]}
["Sources and Audit Notes"]
[]
["Source definitions, access points, and limitations."]
[]
["Item","Period / As-of","Source Type","Source / File","Reference","Notes"]
["Region 1 award actions","FY2022-FY2025","Provided raw data","grant-awards-2026-08-04.csv","258 records","States represented: CT, ME, MA, NH, RI, VT."]
["Playbook statements","Current attached version","Provided PDF","Prevention-Continuity-Playbook(3).pdf","Page 5","Claims audited in Claim Check."]
["SAMHSA grant awards","Accessed 2026-08-04","Federal website","https://www.samhsa.gov/grants/grants-dashboard","Grants Dashboard","Underlying award-action context."]
["FY2024 STOP opportunity","FY2024","Federal NOFO","https://www.samhsa.gov/sites/default/files/grants/doc/fy-2024-stop-act-sp-24-001.docx","SP-24-001","$4,566,000 estimated funding; 76 expected awards."]
["FY2025 STOP opportunity","FY2025","Federal opportunity","https://simpler.grants.gov/opportunity/dc8fefd8-0410-4e24-956c-6ab57ac71fe1","SP-25-001","$750,000 estimated funding; 13 expected awards."]
["Prepared by","2026-08-04","Analysis","Nicole M. Augustine / RIZE Consultants","Version 1.0","Formula-driven companion resource."]
[]
[]
["Limitations"]
["This is a descriptive analysis of the supplied award-action extract. It does not measure congressional appropriations, obligations outside the extract, application volume, success rates, or the full national grant portfolio. Award numbers are used as the operational proxy for new starts; records ending in -01 are classified as new. Eleven FY2025 award numbers lack a year suffix in the source and are classified as continuation/other because none represents a newly appearing base award in the supplied time series. National STOP values are estimated opportunity amounts and expected award counts from the NOFOs, not actual Region 1 award totals."]